Body,Body Name,Date,Transaction Number,Invoice Number,Amount,Supplier Name,Supplier ID ,VAT Registration Number ,Expense Area,Expense Type,Expense Code,Purchase Order
http://statistics.data.gov.uk/id/local-authority/29UP,Tonbridge & Malling Borough Council,10/6/2021,0011043266/1,11043266, 1815.00,Absolute Creative Print,01801100,,H&CG Fund Council Specific,Eco Dev & Reg Gen Bus Support,D52TD000047027,110069080
http://statistics.data.gov.uk/id/local-authority/29UP,Tonbridge & Malling Borough Council,10/6/2021,0011043267/1,11043267, 6240.00,G C Industrial Heating Services,00578100,,BRREP Servicing - boilers,Tonbridge Swimming Pool,M15HBP20001929,110069090
http://statistics.data.gov.uk/id/local-authority/29UP,Tonbridge & Malling Borough Council,10/6/2021,0011043268/1,11043268, 155.00,Southern Lightning Engineers Ltd,00094000,,BRREP Servicing-Lightning Prot,Gibson Building West,M15KBP20001942,110069167
http://statistics.data.gov.uk/id/local-authority/29UP,Tonbridge & Malling Borough Council,10/6/2021,0011043268/2,11043268, 155.00,Southern Lightning Engineers Ltd,00094000,,BRREP Servicing-Lightning Prot,Gibson Building East,M15KGP20001942,110069167
http://statistics.data.gov.uk/id/local-authority/29UP,Tonbridge & Malling Borough Council,10/6/2021,0011043269/1,11043269, 64.00,K T Fire Protection Ltd,00057000,,BRREP Servicing - FireAlarmSys,Tonbridge Farm Pavillion,M15HGP20001937,110069105
http://statistics.data.gov.uk/id/local-authority/29UP,Tonbridge & Malling Borough Council,10/6/2021,0011043270/1,11043270, 170.00,Broadwater Technologies,01534500,,BRREP BMS System Mntce/Upgrade,Larkfield Leisure Centre,M15HDP20001912,110069233
http://statistics.data.gov.uk/id/local-authority/29UP,Tonbridge & Malling Borough Council,10/6/2021,0011043271/1,11043271, 403.38,Marine And Industrial Pump Services,00062800,,BRREP Servicing - pool plant,Larkfield Leisure Centre,M15HDP20001910,110069232
http://statistics.data.gov.uk/id/local-authority/29UP,Tonbridge & Malling Borough Council,10/6/2021,0011043272/1,11043272, 43.20,KCS,00054200,,Cleaning & Domestic Supplies,Cleaning & Security,D21FDDD1026001,110069225
http://statistics.data.gov.uk/id/local-authority/29UP,Tonbridge & Malling Borough Council,10/6/2021,0011043272/2,11043272, 37.80,KCS,00054200,,Cleaning & Domestic Supplies,Cleaning & Security,D21FDDD1026001,110069225
http://statistics.data.gov.uk/id/local-authority/29UP,Tonbridge & Malling Borough Council,10/6/2021,0011043272/3,11043272, 476.00,KCS,00054200,,Cleaning & Domestic Supplies,Cleaning & Security,D21FDDD1026001,110069225
http://statistics.data.gov.uk/id/local-authority/29UP,Tonbridge & Malling Borough Council,10/6/2021,0011043273/1,11043273, 81.25,KCS,00054200,,Cleaning & Domestic Supplies,Cleaning & Security,D21FD000026001,110069228
http://statistics.data.gov.uk/id/local-authority/29UP,Tonbridge & Malling Borough Council,10/6/2021,0011043274/1,11043274, 425.00,PV Environmental Surveys,00987200,,BRREP Asbestos monitoring,Shops & Maisonettes,M15NAP30001993,110069197
http://statistics.data.gov.uk/id/local-authority/29UP,Tonbridge & Malling Borough Council,10/6/2021,0011043275/1,11043275, 1110.00,G C Industrial Heating Services,00578100,,BRREP Servicing - Heating Syst,Gibson Building East,M15KGP20001934,110069180
http://statistics.data.gov.uk/id/local-authority/29UP,Tonbridge & Malling Borough Council,10/6/2021,0011043276/1,11043276, 6461.13,Idox Software Ltd,00962400,,Electronic Elector Responses,Electoral Registration,D31MF000044102,110069069
http://statistics.data.gov.uk/id/local-authority/29UP,Tonbridge & Malling Borough Council,10/6/2021,0011043277/1,11043277, 1774.90,IWS Water Hygiene,01392400,,BRREP Water Softener,Tonbridge Swimming Pool,M15HBP20001917,110069193
http://statistics.data.gov.uk/id/local-authority/29UP,Tonbridge & Malling Borough Council,10/6/2021,0011043278/1,11043278, 1380.00,Furniture At Work Ltd,01809000,,Purchases,Cleaning & Security,D21FDDD6040101,110069137
http://statistics.data.gov.uk/id/local-authority/29UP,Tonbridge & Malling Borough Council,10/6/2021,0011043279/1,11043279, 56.00,Willow Pumps Ltd,00114100,,BRREP Servicing - Pumping Stn,Tonbridge Swimming Pool,M15HBP20001931,110069172
http://statistics.data.gov.uk/id/local-authority/29UP,Tonbridge & Malling Borough Council,10/6/2021,0011043279/2,11043279, 112.00,Willow Pumps Ltd,00114100,,BRREP Servicing - Pumping Stn,Ton Sportsgrnd Bldgs / Toilets,M15HCP20001931,110069172
http://statistics.data.gov.uk/id/local-authority/29UP,Tonbridge & Malling Borough Council,10/6/2021,0011043279/3,11043279, 112.00,Willow Pumps Ltd,00114100,,BRREP Servicing - Pumping Stn,Vale Rise Depot,M15LCP20001931,110069172
http://statistics.data.gov.uk/id/local-authority/29UP,Tonbridge & Malling Borough Council,10/6/2021,0011043280/1,11043280, 79.00,BML Building Services Ltd,01505000,,BRREP Resp - Vandal / Break-In,Pleasure Grounds & Open Spaces,M15HHP50001998,110069237
http://statistics.data.gov.uk/id/local-authority/29UP,Tonbridge & Malling Borough Council,10/6/2021,0011043282/1,11043282, 1292.77,Chubb Fire & Security Ltd,00115400,174605362,BRREP Servicing-IntruderAlarm,Tonbridge Castle / CAB,M15KFP20001939,110069239
http://statistics.data.gov.uk/id/local-authority/29UP,Tonbridge & Malling Borough Council,10/6/2021,0011043283/1,11043283, 14.90,KCS,00054200,,Stationery,Admin & Prop Sals&Overheads,D01AA000043003,110069238
http://statistics.data.gov.uk/id/local-authority/29UP,Tonbridge & Malling Borough Council,10/6/2021,0011043283/2,11043283, 27.60,KCS,00054200,,Stationery,Admin & Prop Sals&Overheads,D01AA000043003,110069238
http://statistics.data.gov.uk/id/local-authority/29UP,Tonbridge & Malling Borough Council,10/6/2021,0011043283/3,11043283, 11.25,KCS,00054200,,Stationery,Admin & Prop Sals&Overheads,D01AA000043003,110069238
http://statistics.data.gov.uk/id/local-authority/29UP,Tonbridge & Malling Borough Council,10/6/2021,0011043283/4,11043283, 32.40,KCS,00054200,,Stationery,Admin & Prop Sals&Overheads,D01AA000043003,110069238
http://statistics.data.gov.uk/id/local-authority/29UP,Tonbridge & Malling Borough Council,10/6/2021,0011043284/1,11043284, 130.00,G C Industrial Heating Services,00578100,,BRREP Response - General,Gibson Building East,M15KGP50001997,110069215
http://statistics.data.gov.uk/id/local-authority/29UP,Tonbridge & Malling Borough Council,10/6/2021,0011043285/1,11043285, 75.00,Assoc. of Tourist Attractions in Kent,00006000,573619712,Marketing,Tonbridge Castle Gatehouse,B40TG000044215,
http://statistics.data.gov.uk/id/local-authority/29UP,Tonbridge & Malling Borough Council,10/6/2021,0011043286/1,11043286, 2810.00,G C Industrial Heating Services,00578100,,BRREP Response - General,Larkfield Leisure Centre,M15HDP50001997,
http://statistics.data.gov.uk/id/local-authority/29UP,Tonbridge & Malling Borough Council,10/6/2021,0011043287/1,11043287, 48.10,Antalis,01556800,317187204,Purchases - Paper,Printing,D22GA000040102,
http://statistics.data.gov.uk/id/local-authority/29UP,Tonbridge & Malling Borough Council,10/6/2021,0011043288/1,11043288, 4.80,Royal Mail,00086200,,Purchases,Mailsort Stock Account,K37BR000001002,
http://statistics.data.gov.uk/id/local-authority/29UP,Tonbridge & Malling Borough Council,10/6/2021,0011043288/2,11043288, 1613.12,Royal Mail,00086200,,Purchases,Mailsort Stock Account,K37BR000001002,
http://statistics.data.gov.uk/id/local-authority/29UP,Tonbridge & Malling Borough Council,10/6/2021,0011043290/1,11043290, 29.01,EDF Energy Customers plc,01035000,,Estate Management Charge,Land Review,D40PS000020400,
http://statistics.data.gov.uk/id/local-authority/29UP,Tonbridge & Malling Borough Council,10/6/2021,0011043291/1,11043291, 99.50,Royal Mail,00086200,,Purchases,Business Reply Stock Account,K14AT000001002,
http://statistics.data.gov.uk/id/local-authority/29UP,Tonbridge & Malling Borough Council,10/6/2021,0011043292/1,11043292, 89.00,BML Building Services Ltd,01505000,,BRREP Response - General,PC - General,M15JAP50001997,
http://statistics.data.gov.uk/id/local-authority/29UP,Tonbridge & Malling Borough Council,10/6/2021,0011043293/1,11043293, 840.00,Venn Group Ltd,00914300,,Temporary Staff,Legal Sals&Overheads,D01ARDR0011300,
http://statistics.data.gov.uk/id/local-authority/29UP,Tonbridge & Malling Borough Council,10/6/2021,0011043294/1,11043294, 759.50,Bevan Brittan LLP,01096600,,Legal Fees,Legal Sals&Overheads,D01ARDR0044002,
http://statistics.data.gov.uk/id/local-authority/29UP,Tonbridge & Malling Borough Council,10/6/2021,0011043295/1,11043295, 525.00,IWS Water Hygiene,01392400,,BRREP Water Softener,Tonbridge Swimming Pool,M15HBP20001917,
http://statistics.data.gov.uk/id/local-authority/29UP,Tonbridge & Malling Borough Council,10/6/2021,0011043296/1,11043296, 671.47,Castle Water,01696500,,Water Charges (Metered),Buildings,D21FEDD1024001,
http://statistics.data.gov.uk/id/local-authority/29UP,Tonbridge & Malling Borough Council,10/6/2021,0011043297/1,11043297, 110.00,G C Industrial Heating Services,00578100,,BRREP Response - General,Gibson Building East,M15KGP50001997,
http://statistics.data.gov.uk/id/local-authority/29UP,Tonbridge & Malling Borough Council,10/6/2021,0012008133/1,12008133, 14.66,Esendex Limited,01008900,,Leased Lines & Modems,Information Technology,D27KD000045011,
http://statistics.data.gov.uk/id/local-authority/29UP,Tonbridge & Malling Borough Council,10/6/2021,0012008134/1,12008134, 284.85,CCS Media Ltd,00018000,,Purchases,Information Technology,D27KD000040101,410032048
http://statistics.data.gov.uk/id/local-authority/29UP,Tonbridge & Malling Borough Council,10/6/2021,0012008135/1,12008135, 7.99,CCS Media Ltd,00018000,,Purchases,Information Technology,D27KD000040101,410032048
http://statistics.data.gov.uk/id/local-authority/29UP,Tonbridge & Malling Borough Council,10/6/2021,0012008135/2,12008135, 359.85,CCS Media Ltd,00018000,,Purchases,Information Technology,D27KD000040101,410032048
http://statistics.data.gov.uk/id/local-authority/29UP,Tonbridge & Malling Borough Council,10/6/2021,0012008135/3,12008135, 5.00,CCS Media Ltd,00018000,,Delivery Expenses,Information Technology,D27KD000044069,410032048
http://statistics.data.gov.uk/id/local-authority/29UP,Tonbridge & Malling Borough Council,10/6/2021,0012008136/1,12008136, 400.00,NEC Software Solutions UK Ltd,01073900,202159745,Maintenance - Ancillary Equip,Information Technology,D27KD000040137,410032057
http://statistics.data.gov.uk/id/local-authority/29UP,Tonbridge & Malling Borough Council,10/6/2021,0012008137/1,12008137, 386.00,iHub UK Limited,01287000,,Telephones - Rentals,General Admin Telephones,D24GT000045005,
http://statistics.data.gov.uk/id/local-authority/29UP,Tonbridge & Malling Borough Council,10/6/2021,0012008137/2,12008137, 0.06,iHub UK Limited,01287000,,Telephones - Call Costs,General Admin Telephones,D24GT000045006,
http://statistics.data.gov.uk/id/local-authority/29UP,Tonbridge & Malling Borough Council,10/6/2021,0012008138/1,12008138, 823.73,NTT Cloud Communications,01794600,,Software Hire & Support,Information Technology,D27KD000044059,410031928
http://statistics.data.gov.uk/id/local-authority/29UP,Tonbridge & Malling Borough Council,10/6/2021,0021037492/1,21037492, 300.00,Brook Security Ltd,00012700,,Purchases,Open Spaces & Amenity Areas,B22LE000040101,210056288
http://statistics.data.gov.uk/id/local-authority/29UP,Tonbridge & Malling Borough Council,10/6/2021,0021037493/1,21037493, 500.00,Medway Valley Countryside PartnershipKCC,00780000,,Medway Valley Partnership,Countryside/Woodland Mgt,B22LH000051013,210056167
http://statistics.data.gov.uk/id/local-authority/29UP,Tonbridge & Malling Borough Council,10/6/2021,0021037494/1,21037494, 815.00,Earth Anchors Ltd,00030000,,Maintenance of Grounds,Cemetery,B26MP000020402,210056452
http://statistics.data.gov.uk/id/local-authority/29UP,Tonbridge & Malling Borough Council,10/6/2021,0021037494/2,21037494, 190.00,Earth Anchors Ltd,00030000,,Maintenance of Grounds,Cemetery,B26MP000020402,210056452
http://statistics.data.gov.uk/id/local-authority/29UP,Tonbridge & Malling Borough Council,10/6/2021,0021037494/3,21037494, 48.00,Earth Anchors Ltd,00030000,,Maintenance of Grounds,Cemetery,B26MP000020402,210056452
http://statistics.data.gov.uk/id/local-authority/29UP,Tonbridge & Malling Borough Council,10/6/2021,0021037495/1,21037495, 158.33,Rock UK,01212500,,Partnership Fees,Youth Partnerships,B33PG000044048,210056499
http://statistics.data.gov.uk/id/local-authority/29UP,Tonbridge & Malling Borough Council,10/6/2021,0021037495/2,21037495, 1181.25,Rock UK,01212500,,Partnership Fees,Youth Partnerships,B33PG000044048,210056499
http://statistics.data.gov.uk/id/local-authority/29UP,Tonbridge & Malling Borough Council,10/6/2021,0021037496/1,21037496, 20341.80,Landscape Services Ltd,00057600,,Grounds Maintenance Contract,Sports Grounds,B13ET000050103,
http://statistics.data.gov.uk/id/local-authority/29UP,Tonbridge & Malling Borough Council,10/6/2021,0021037496/10,21037496, 149.11,Landscape Services Ltd,00057600,,Grounds Maintenance Contract,Churchyards St Stephens,B28MY000050103,
http://statistics.data.gov.uk/id/local-authority/29UP,Tonbridge & Malling Borough Council,10/6/2021,0021037496/11,21037496, 164.81,Landscape Services Ltd,00057600,,Grounds Maintenance Contract,Grounds,D21FF000050103,
http://statistics.data.gov.uk/id/local-authority/29UP,Tonbridge & Malling Borough Council,10/6/2021,0021037496/12,21037496, 312.58,Landscape Services Ltd,00057600,,Maintenance of Grounds,Parking Off-Street,E10HA000020402,
http://statistics.data.gov.uk/id/local-authority/29UP,Tonbridge & Malling Borough Council,10/6/2021,0021037496/13,21037496, 980.27,Landscape Services Ltd,00057600,,Maintenance of Grounds,Parking Off-Street,E10HAE00120402,
http://statistics.data.gov.uk/id/local-authority/29UP,Tonbridge & Malling Borough Council,10/6/2021,0021037496/14,21037496, 93.08,Landscape Services Ltd,00057600,,Maintenance of Grounds,Parking Off-Street,E10HAE00220402,
http://statistics.data.gov.uk/id/local-authority/29UP,Tonbridge & Malling Borough Council,10/6/2021,0021037496/15,21037496, 84.41,Landscape Services Ltd,00057600,,Maintenance of Grounds,Parking Off-Street,E10HAE00320402,
http://statistics.data.gov.uk/id/local-authority/29UP,Tonbridge & Malling Borough Council,10/6/2021,0021037496/16,21037496, 21.05,Landscape Services Ltd,00057600,,Maintenance of Grounds,Parking Off-Street,E10HAE00420402,
http://statistics.data.gov.uk/id/local-authority/29UP,Tonbridge & Malling Borough Council,10/6/2021,0021037496/17,21037496, 0.54,Landscape Services Ltd,00057600,,Maintenance of Grounds,Parking Off-Street,E10HAE00520402,
http://statistics.data.gov.uk/id/local-authority/29UP,Tonbridge & Malling Borough Council,10/6/2021,0021037496/18,21037496, 58.93,Landscape Services Ltd,00057600,,Maintenance of Grounds,Parking Off-Street,E10HAE00620402,
http://statistics.data.gov.uk/id/local-authority/29UP,Tonbridge & Malling Borough Council,10/6/2021,0021037496/19,21037496, 137.58,Landscape Services Ltd,00057600,,Maintenance of Grounds,Parking Off-Street,E10HAE01020402,
http://statistics.data.gov.uk/id/local-authority/29UP,Tonbridge & Malling Borough Council,10/6/2021,0021037496/2,21037496, 7076.24,Landscape Services Ltd,00057600,,Grounds Maintenance Contract,Tonbridge Castle Grounds,B22LB000050103,
http://statistics.data.gov.uk/id/local-authority/29UP,Tonbridge & Malling Borough Council,10/6/2021,0021037496/20,21037496, 3.05,Landscape Services Ltd,00057600,,Maintenance of Grounds,Parking Off-Street,E10HAE01220402,
http://statistics.data.gov.uk/id/local-authority/29UP,Tonbridge & Malling Borough Council,10/6/2021,0021037496/21,21037496, 6.73,Landscape Services Ltd,00057600,,Maintenance of Grounds,Parking Off-Street,E10HAE01320402,
http://statistics.data.gov.uk/id/local-authority/29UP,Tonbridge & Malling Borough Council,10/6/2021,0021037496/22,21037496, 27.99,Landscape Services Ltd,00057600,,Maintenance of Grounds,Parking Off-Street,E10HAE01520402,
http://statistics.data.gov.uk/id/local-authority/29UP,Tonbridge & Malling Borough Council,10/6/2021,0021037496/23,21037496, 54.69,Landscape Services Ltd,00057600,,Maintenance of Grounds,Parking Off-Street,E10HAE01620402,
http://statistics.data.gov.uk/id/local-authority/29UP,Tonbridge & Malling Borough Council,10/6/2021,0021037496/24,21037496, 13.65,Landscape Services Ltd,00057600,,Maintenance of Grounds,Parking Off-Street,E10HAE02120402,
http://statistics.data.gov.uk/id/local-authority/29UP,Tonbridge & Malling Borough Council,10/6/2021,0021037496/25,21037496, 21.74,Landscape Services Ltd,00057600,,Maintenance of Grounds,Parking Off-Street,E10HAE02320402,
http://statistics.data.gov.uk/id/local-authority/29UP,Tonbridge & Malling Borough Council,10/6/2021,0021037496/26,21037496, 83.33,Landscape Services Ltd,00057600,,Maintenance of Grounds,Parking Off-Street,E10HAE02820402,
http://statistics.data.gov.uk/id/local-authority/29UP,Tonbridge & Malling Borough Council,10/6/2021,0021037496/27,21037496, 22.56,Landscape Services Ltd,00057600,,Maintenance of Grounds,Parking Off-Street,E10HAE04020402,
http://statistics.data.gov.uk/id/local-authority/29UP,Tonbridge & Malling Borough Council,10/6/2021,0021037496/28,21037496, 74.40,Landscape Services Ltd,00057600,,Maintenance of Grounds,Parking Off-Street,E10HAE04520402,
http://statistics.data.gov.uk/id/local-authority/29UP,Tonbridge & Malling Borough Council,10/6/2021,0021037496/3,21037496, 53.86,Landscape Services Ltd,00057600,,Trade Refuse Charges,Haysden Country Park,B22LC000044008,
http://statistics.data.gov.uk/id/local-authority/29UP,Tonbridge & Malling Borough Council,10/6/2021,0021037496/4,21037496, 462.07,Landscape Services Ltd,00057600,,Litter Collection,Haysden Country Park,B22LC000044061,
http://statistics.data.gov.uk/id/local-authority/29UP,Tonbridge & Malling Borough Council,10/6/2021,0021037496/5,21037496, 1600.71,Landscape Services Ltd,00057600,,Grounds Maintenance Contract,Haysden Country Park,B22LC000050103,
http://statistics.data.gov.uk/id/local-authority/29UP,Tonbridge & Malling Borough Council,10/6/2021,0021037496/6,21037496, 554.05,Landscape Services Ltd,00057600,,Grounds Maintenance Contract,Haysden Country Park,B22LC000050103,
http://statistics.data.gov.uk/id/local-authority/29UP,Tonbridge & Malling Borough Council,10/6/2021,0021037496/7,21037496, 11232.13,Landscape Services Ltd,00057600,,Grounds Maintenance Contract,Open Spaces & Amenity Areas,B22LE000050103,
http://statistics.data.gov.uk/id/local-authority/29UP,Tonbridge & Malling Borough Council,10/6/2021,0021037496/8,21037496, 4341.07,Landscape Services Ltd,00057600,,Grounds Maintenance Contract,Cemetery,B26MP000050103,
http://statistics.data.gov.uk/id/local-authority/29UP,Tonbridge & Malling Borough Council,10/6/2021,0021037496/9,21037496, 205.04,Landscape Services Ltd,00057600,,Grounds Maintenance Contract,Churchyards St Peter & St Paul,B28MX000050103,
http://statistics.data.gov.uk/id/local-authority/29UP,Tonbridge & Malling Borough Council,10/6/2021,0021037498/1,21037498, 525.00,Green Oak Services,01635000,,BRREP Hard paving surface rep,Shops & Maisonettes,M15NAP20001946,210056497
http://statistics.data.gov.uk/id/local-authority/29UP,Tonbridge & Malling Borough Council,10/6/2021,0021037499/3,21037499, 31.00,Lawrence Container Hire Ltd,01033800,,Maintenance of Grounds,Leybourne Lakes Country Park,B22LK000020402,
http://statistics.data.gov.uk/id/local-authority/29UP,Tonbridge & Malling Borough Council,10/6/2021,0021037500/3,21037500, 80.50,Maidstone Signs Ltd,00940000,,Events Support,Events Development,B41TJ000044041,
http://statistics.data.gov.uk/id/local-authority/29UP,Tonbridge & Malling Borough Council,10/6/2021,0021037501/1,21037501, 5000.00,Rotary Club of Tonbridge (Christmas),01292700,,Events Support,Events Development,B41TJ000044041,210056523
http://statistics.data.gov.uk/id/local-authority/29UP,Tonbridge & Malling Borough Council,10/6/2021,0021037502/1,21037502, 722.88,J P Lennard Ltd,00052900,,Initial Furniture & Equipment,Capital Renewals Leisure,P05KGBC0409906,210056502
http://statistics.data.gov.uk/id/local-authority/29UP,Tonbridge & Malling Borough Council,10/6/2021,0022025809/3,22025809, 618.75,KH Recruitment Ltd,01738900,,Temporary Staff,St Scene & Leis Sals&Overheads,D01AGDG3011300,
http://statistics.data.gov.uk/id/local-authority/29UP,Tonbridge & Malling Borough Council,10/6/2021,0022025810/1,22025810, 1458.57,DCB (Kent) LTD,01326800,,Other Expenses,Disabled Facilities Grant Mand,P03AC000009908,
http://statistics.data.gov.uk/id/local-authority/29UP,Tonbridge & Malling Borough Council,10/6/2021,0022025811/1,22025811, 1375.99,Peabody South East LTD,01680900,,Other Expenses,Disabled Facilities Grant Mand,P03AC000009908,
http://statistics.data.gov.uk/id/local-authority/29UP,Tonbridge & Malling Borough Council,10/6/2021,0022025812/1,22025812, 8776.13,Hubbard & Houghton Construction Ltd,00970600,,Other Expenses,Disabled Facilities Grant Mand,P03AC000009908,
http://statistics.data.gov.uk/id/local-authority/29UP,Tonbridge & Malling Borough Council,10/6/2021,0022025813/1,22025813, 6888.78,MCL  Mechanical Handling Ltd,00064100,,Other Expenses,Disabled Facilities Grant Mand,P03AC000009908,
http://statistics.data.gov.uk/id/local-authority/29UP,Tonbridge & Malling Borough Council,10/6/2021,0022025814/1,22025814, 5708.52,Dolphin Stairlifts,00698900,,Other Expenses,Disabled Facilities Grant Mand,P03AC000009908,
http://statistics.data.gov.uk/id/local-authority/29UP,Tonbridge & Malling Borough Council,10/6/2021,0022025815/1,22025815, 1783.98,Peabody South East LTD,01680900,,Other Expenses,Disabled Facilities Grant Mand,P03AC000009908,
http://statistics.data.gov.uk/id/local-authority/29UP,Tonbridge & Malling Borough Council,10/6/2021,0022025816/1,22025816, 4649.56,Adaptec Mobilty Ltd,01785800,339578354,Other Expenses,Disabled Facilities Grant Mand,P03AC000009908,
http://statistics.data.gov.uk/id/local-authority/29UP,Tonbridge & Malling Borough Council,10/6/2021,0022025817/1,22025817, 669.54,Peabody South East LTD,01680900,,Other Expenses,Disabled Facilities Grant Mand,P03AC000009908,
http://statistics.data.gov.uk/id/local-authority/29UP,Tonbridge & Malling Borough Council,10/6/2021,0022025818/1,22025818, 1080.00,Wynsdale Waste Management Ltd,01772500,,Other Expenses,Disabled Facilities Grant Mand,P03AC000009908,
http://statistics.data.gov.uk/id/local-authority/29UP,Tonbridge & Malling Borough Council,10/6/2021,0022025819/1,22025819, 5135.22,MCL  Mechanical Handling Ltd,00064100,,Other Expenses,Disabled Facilities Grant Mand,P03AC000009908,
http://statistics.data.gov.uk/id/local-authority/29UP,Tonbridge & Malling Borough Council,10/6/2021,0022025820/1,22025820, 739.48,Peabody South East LTD,01680900,,Other Expenses,Disabled Facilities Grant Mand,P03AC000009908,
http://statistics.data.gov.uk/id/local-authority/29UP,Tonbridge & Malling Borough Council,10/6/2021,0022025821/1,22025821, 4645.60,Countrystyle Group,00835900,781981681,Plastic Recycling,Dry Recycling,H34SR000054019,
http://statistics.data.gov.uk/id/local-authority/29UP,Tonbridge & Malling Borough Council,10/6/2021,0022025822/1,22025822, 1020.00,The Oyster Partnership,01196400,,Temporary Staff,Env Hlth & Hsg Sals&Overheads,D01AVDV0711300,
http://statistics.data.gov.uk/id/local-authority/29UP,Tonbridge & Malling Borough Council,10/6/2021,0022025823/1,22025823, 3735.29,Ward Security LTD,01490000,,Dog Warden,Street Scene,H23SD000044100,
http://statistics.data.gov.uk/id/local-authority/29UP,Tonbridge & Malling Borough Council,10/6/2021,0022025824/3,22025824, 86.63,British Gas,01148500,,Electricity,Homelessness,C01AAMAUN21002,
http://statistics.data.gov.uk/id/local-authority/29UP,Tonbridge & Malling Borough Council,10/6/2021,0022025825/1,22025825, 840.00,Smart Property Professionals,01815100,,Temporary Accommodation,Homelessness,C01AA000044051,
http://statistics.data.gov.uk/id/local-authority/29UP,Tonbridge & Malling Borough Council,10/6/2021,0022025826/3,22025826, 421.20,Countrystyle Group,00835900,781981681,Plastic Recycling,Dry Recycling,H34SR000054019,
http://statistics.data.gov.uk/id/local-authority/29UP,Tonbridge & Malling Borough Council,10/6/2021,0022025827/1,22025827, 763.31,G2 Recruitment Solutions,01786000,,Temporary Staff,Env Hlth & Hsg Sals&Overheads,D01AVDV0711300,
http://statistics.data.gov.uk/id/local-authority/29UP,Tonbridge & Malling Borough Council,10/6/2021,0022025828/1,22025828, 1239.50,Vivid Resourcing,01773700,,Temporary Staff,Env Hlth & Hsg Sals&Overheads,D01AVDV0711300,
http://statistics.data.gov.uk/id/local-authority/29UP,Tonbridge & Malling Borough Council,10/6/2021,0022025829/1,22025829, 950.00,Stiles Harold Williams LLP,01721700,,Temporary Accommodation,Homelessness,C01AASYRI44051,
http://statistics.data.gov.uk/id/local-authority/29UP,Tonbridge & Malling Borough Council,10/6/2021,0022025830/1,22025830, 5020.88,Alfa Electrical LTD Inc AVCO Maintenance,01642200,,Other Expenses,Disabled Facilities Grant Mand,P03AC000009908,
http://statistics.data.gov.uk/id/local-authority/29UP,Tonbridge & Malling Borough Council,10/6/2021,0022025831/1,22025831, 723.00,Peabody South East LTD,01680900,,Other Expenses,Disabled Facilities Grant Mand,P03AC000009908,
http://statistics.data.gov.uk/id/local-authority/29UP,Tonbridge & Malling Borough Council,10/6/2021,0031018189/1,31018189, 138.91,Npower Ltd,01675800,,Electricity,Parking Off-Street,E10HA000021002,
http://statistics.data.gov.uk/id/local-authority/29UP,Tonbridge & Malling Borough Council,10/6/2021,0031018190/1,31018190, 56.49,Npower Ltd,01675800,,Electricity,Parking Off-Street,E10HA000021002,
http://statistics.data.gov.uk/id/local-authority/29UP,Tonbridge & Malling Borough Council,10/6/2021,0031018191/1,31018191, 29.86,Npower Ltd,01675800,,Electricity,Parking Off-Street,E10HA000021002,
http://statistics.data.gov.uk/id/local-authority/29UP,Tonbridge & Malling Borough Council,10/6/2021,0031018192/1,31018192, 135.32,Royal British Legion Industries Ltd,00139700,,Premises Repairs & Maintenance,Parking On-Street,E10HD000020601,310042720
http://statistics.data.gov.uk/id/local-authority/29UP,Tonbridge & Malling Borough Council,10/6/2021,0031018193/1,31018193, 504.00,Nagels,01434000,,Stationery,Parking Off-Street,E10HA000043003,310042727
http://statistics.data.gov.uk/id/local-authority/29UP,Tonbridge & Malling Borough Council,10/6/2021,0031018193/2,31018193, 756.00,Nagels,01434000,,Stationery,Parking On-Street,E10HD000043003,310042727
http://statistics.data.gov.uk/id/local-authority/29UP,Tonbridge & Malling Borough Council,10/6/2021,0031018194/1,31018194, 128.40,Nagels,01434000,,Stationery,Parking Off-Street,E10HA000043003,310042727
http://statistics.data.gov.uk/id/local-authority/29UP,Tonbridge & Malling Borough Council,10/6/2021,0031018194/2,31018194, 192.60,Nagels,01434000,,Stationery,Parking On-Street,E10HD000043003,310042727
http://statistics.data.gov.uk/id/local-authority/29UP,Tonbridge & Malling Borough Council,10/6/2021,0031018195/1,31018195, 27.01,REDACTED PERSONAL DATA,01526800,,"Petrol, Diesel & Oil",Parking On-Street,E10HD000030106,
http://statistics.data.gov.uk/id/local-authority/29UP,Tonbridge & Malling Borough Council,10/6/2021,0031018196/3,31018196, 156.30,British Telecommunications Plc,00012800,,Maintenance - General,Security Services Management,E09GA000040135,
http://statistics.data.gov.uk/id/local-authority/29UP,Tonbridge & Malling Borough Council,10/6/2021,0031018197/3,31018197, 138.90,British Telecommunications Plc,00012800,,Maintenance - General,Security Services Management,E09GA000040135,
http://statistics.data.gov.uk/id/local-authority/29UP,Tonbridge & Malling Borough Council,10/6/2021,0031018198/1,31018198, 594.35,Archway Highway Services Ltd,01398000,,Other Expenses,Car Park Imp Rolling Programme,P01AB000009908,310042723
http://statistics.data.gov.uk/id/local-authority/29UP,Tonbridge & Malling Borough Council,10/6/2021,0031018199/1,31018199, 4132.80,Chroma Vision Ltd,00891600,,CCTV Monitoring Station,Security Services Management,E09GA000051020,310042695
http://statistics.data.gov.uk/id/local-authority/29UP,Tonbridge & Malling Borough Council,10/6/2021,0031018200/1,31018200, 29.94,Kings Hill Garage Ltd,01546300,,Transport Repair & Maintenance,Parking Off-Street,E10HA000030103,210056468
http://statistics.data.gov.uk/id/local-authority/29UP,Tonbridge & Malling Borough Council,10/6/2021,0031018200/2,31018200, 3.00,Kings Hill Garage Ltd,01546300,,Transport Repair & Maintenance,Parking Off-Street,E10HA000030103,210056468
http://statistics.data.gov.uk/id/local-authority/29UP,Tonbridge & Malling Borough Council,10/6/2021,0031018200/3,31018200, 54.85,Kings Hill Garage Ltd,01546300,,Transport Repair & Maintenance,Parking Off-Street,E10HA000030103,210056468
http://statistics.data.gov.uk/id/local-authority/29UP,Tonbridge & Malling Borough Council,10/6/2021,0031018200/4,31018200, 2.00,Kings Hill Garage Ltd,01546300,,Transport Repair & Maintenance,Parking On-Street,E10HD000030103,210056468
http://statistics.data.gov.uk/id/local-authority/29UP,Tonbridge & Malling Borough Council,10/6/2021,0031018200/5,31018200, 19.96,Kings Hill Garage Ltd,01546300,,Transport Repair & Maintenance,Parking On-Street,E10HD000030103,210056468
http://statistics.data.gov.uk/id/local-authority/29UP,Tonbridge & Malling Borough Council,10/6/2021,0031018201/1,31018201, 32.91,Kings Hill Garage Ltd,01546300,,Transport Repair & Maintenance,Parking Off-Street,E10HA000030103,210056468
http://statistics.data.gov.uk/id/local-authority/29UP,Tonbridge & Malling Borough Council,10/6/2021,0031018201/2,31018201, 21.94,Kings Hill Garage Ltd,01546300,,Transport Repair & Maintenance,Parking On-Street,E10HD000030103,210056468
http://statistics.data.gov.uk/id/local-authority/29UP,Tonbridge & Malling Borough Council,10/6/2021,0031018202/1,31018202, 32.91,Kings Hill Garage Ltd,01546300,,Transport Repair & Maintenance,Parking Off-Street,E10HA000030103,210056468
http://statistics.data.gov.uk/id/local-authority/29UP,Tonbridge & Malling Borough Council,10/6/2021,0031018202/2,31018202, 21.94,Kings Hill Garage Ltd,01546300,,Transport Repair & Maintenance,Parking On-Street,E10HD000030103,210056468
http://statistics.data.gov.uk/id/local-authority/29UP,Tonbridge & Malling Borough Council,10/6/2021,0031018203/1,31018203, 1935.00,Marston,01485000,,Adjudication & Enforcement Ser,Parking Off-Street,E10HA000044230,
http://statistics.data.gov.uk/id/local-authority/29UP,Tonbridge & Malling Borough Council,10/6/2021,0031018204/1,31018204, 150.00,SKF Contractors Ltd,00092000,,Premises Repairs & Maintenance,Parking Off-Street,E10HAE02320601,
http://statistics.data.gov.uk/id/local-authority/29UP,Tonbridge & Malling Borough Council,10/6/2021,0031018205/1,31018205, 410.00,Wellden Land Surveys,01410600,,Professional Fees,Boro Drainage & Land Drainage,E20MA000044001,310042644
http://statistics.data.gov.uk/id/local-authority/29UP,Tonbridge & Malling Borough Council,10/6/2021,0032009262/1,32009262, 11000.00,Robinson Escott Planning LLP,01653000,,Application & Appeals,Development Management,A01AB000044194,320003274
http://statistics.data.gov.uk/id/local-authority/29UP,Tonbridge & Malling Borough Council,10/6/2021,0032009263/1,32009263, 1446.80,The Oyster Partnership,01196400,,Temporary Staff,Planning Sals&Overheads,D01AJDJ0111300,
http://statistics.data.gov.uk/id/local-authority/29UP,Tonbridge & Malling Borough Council,10/6/2021,0032009264/1,32009264, 135.00,Sevenoaks District Council,00089300,,Building Control Partnership,Building Control,A01AD000054023,
http://statistics.data.gov.uk/id/local-authority/29UP,Tonbridge & Malling Borough Council,10/6/2021,0032009265/1,32009265, 353.94,KM Media Group Ltd,00053900,,Advertising General,Development Management,A01ABZ99944216,320003333
http://statistics.data.gov.uk/id/local-authority/29UP,Tonbridge & Malling Borough Council,10/6/2021,0032009266/1,32009266, 1270.70,Tunbridge Wells Borough Council,00844600,,Temporary Staff,Planning Sals&Overheads,D01AJDJ0311300,
http://statistics.data.gov.uk/id/local-authority/29UP,Tonbridge & Malling Borough Council,10/6/2021,0041033387/1,41033387, 747.48,Maidstone Borough Council,01173700,,Bailiffs Commission,Local Revenue & NNDR Collect,D41QA000044075,
http://statistics.data.gov.uk/id/local-authority/29UP,Tonbridge & Malling Borough Council,10/6/2021,0041033518/1,41033518, 925.00,Morgan Hunt UK Ltd,01086900,,Temporary Staff,Finance Sals&Overheads,D01AFDF1111300,
http://statistics.data.gov.uk/id/local-authority/29UP,Tonbridge & Malling Borough Council,10/6/2021,0041033519/1,41033519, 1060.00,Morgan Hunt UK Ltd,01086900,,Temporary Staff,Finance Sals&Overheads,D01AFDF1111300,
http://statistics.data.gov.uk/id/local-authority/29UP,Tonbridge & Malling Borough Council,10/6/2021,0041033520/1,41033520, 362.78,Rundle & Co Ltd,00087200,,Bailiffs Commission,Local Revenue & NNDR Collect,D41QA000044075,
http://statistics.data.gov.uk/id/local-authority/29UP,Tonbridge & Malling Borough Council,10/6/2021,0041033521/1,41033521, 176.36,Rundle & Co Ltd,00087200,,Bailiffs Commission,Local Revenue & NNDR Collect,D41QA000044075,
http://statistics.data.gov.uk/id/local-authority/29UP,Tonbridge & Malling Borough Council,10/6/2021,0041033522/1,41033522, 442.69,Rundle & Co Ltd,00087200,,Bailiffs Commission,Local Revenue & NNDR Collect,D41QA000044075,
http://statistics.data.gov.uk/id/local-authority/29UP,Tonbridge & Malling Borough Council,10/6/2021,0041033525/1,41033525, 564.53,Maidstone Borough Council,01173700,,Bailiffs Commission,Local Revenue & NNDR Collect,D41QA000044075,
http://statistics.data.gov.uk/id/local-authority/29UP,Tonbridge & Malling Borough Council,10/6/2021,0041033530/1,41033530, 9.00,KCS,00054200,,Stationery,Finance Sals&Overheads,D01AF000043003,410032049
http://statistics.data.gov.uk/id/local-authority/29UP,Tonbridge & Malling Borough Council,10/6/2021,0041033532/1,41033532, 9.00,KCS,00054200,,Stationery,Finance Sals&Overheads,D01AF000043003,
http://statistics.data.gov.uk/id/local-authority/29UP,Tonbridge & Malling Borough Council,10/6/2021,0051008603/1,51008603, 325.00,St John Ambulance Supplies,01228000,,Ext Fees/Health & Safety,Training,D10DCDA0513566,510010518
http://statistics.data.gov.uk/id/local-authority/29UP,Tonbridge & Malling Borough Council,10/7/2021,0041033528/13,41033528, 298.45,National Westminster Bank Plc,00894500,,Software Hire & Support,Information Technology,D27KD000044059,
http://statistics.data.gov.uk/id/local-authority/29UP,Tonbridge & Malling Borough Council,10/7/2021,0041033528/14,41033528, 18.71,National Westminster Bank Plc,00894500,,Software Hire & Support,Information Technology,D27KD000044059,
http://statistics.data.gov.uk/id/local-authority/29UP,Tonbridge & Malling Borough Council,10/7/2021,0041033528/15,41033528, 177.33,National Westminster Bank Plc,00894500,,Software Hire & Support,Information Technology,D27KD000044059,
http://statistics.data.gov.uk/id/local-authority/29UP,Tonbridge & Malling Borough Council,10/7/2021,0041033528/16,41033528, 24.60,National Westminster Bank Plc,00894500,,Sales,TIC Stock Account,K18AX000002002,
http://statistics.data.gov.uk/id/local-authority/29UP,Tonbridge & Malling Borough Council,10/7/2021,0041033528/17,41033528, 47.95,National Westminster Bank Plc,00894500,,Sales,TIC Stock Account,K18AX000002002,
http://statistics.data.gov.uk/id/local-authority/29UP,Tonbridge & Malling Borough Council,10/7/2021,0041033528/18,41033528, 42.56,National Westminster Bank Plc,00894500,,Sales,TIC Stock Account,K18AX000002002,
http://statistics.data.gov.uk/id/local-authority/29UP,Tonbridge & Malling Borough Council,10/7/2021,0041033528/19,41033528, 73.43,National Westminster Bank Plc,00894500,,Sales,TIC Stock Account,K18AX000002002,
http://statistics.data.gov.uk/id/local-authority/29UP,Tonbridge & Malling Borough Council,10/7/2021,0041033528/3,41033528, 82.48,National Westminster Bank Plc,00894500,,Office Security,Ton Castle Council Chamber,D21FC000044047,
http://statistics.data.gov.uk/id/local-authority/29UP,Tonbridge & Malling Borough Council,10/7/2021,0041033535/1,41033535, 50.00,National Westminster Bank Plc,00069400,,Direct Debit / Bank Charges,Local Revenue & NNDR Collect,D41QA000044079,
http://statistics.data.gov.uk/id/local-authority/29UP,Tonbridge & Malling Borough Council,10/11/2021,0041033542/1,41033542, 15.00,HSBC Bank Plc,01740800,,Bank Charges,Banking Arrangements,D43QK000044222,
http://statistics.data.gov.uk/id/local-authority/29UP,Tonbridge & Malling Borough Council,10/12/2021,0041033547/1,41033547, 8530.90,Clarion Housing,01776300,,Contribution from Other Bodies,Homelessness,C01AACV1995001,
http://statistics.data.gov.uk/id/local-authority/29UP,Tonbridge & Malling Borough Council,10/13/2021,0011043289/3,11043289, 28.80,EDF Energy Customers plc,01035000,,Estate Management Charge,Land Review,D40PS000020400,
http://statistics.data.gov.uk/id/local-authority/29UP,Tonbridge & Malling Borough Council,10/13/2021,0011043299/1,11043299, 1950.00,Raigins,01769400,,Office Security,Cleaning & Security,D21FD000044047,110069072
http://statistics.data.gov.uk/id/local-authority/29UP,Tonbridge & Malling Borough Council,10/13/2021,0011043300/1,11043300, 153.25,K T Fire Protection Ltd,00057000,,BRREP Servicing - FireAlarmSys,Angel Centre,M15HAP20001937,110069112
http://statistics.data.gov.uk/id/local-authority/29UP,Tonbridge & Malling Borough Council,10/13/2021,0011043301/1,11043301, 113.50,K T Fire Protection Ltd,00057000,,BRREP Servicing - FireAlarmSys,Leis Man Poult Wood Golf Centr,M15HEP20001937,110069103
http://statistics.data.gov.uk/id/local-authority/29UP,Tonbridge & Malling Borough Council,10/13/2021,0011043302/1,11043302, 138.00,K T Fire Protection Ltd,00057000,,BRREP Servicing - FireAlarmSys,Gibson Building West,M15KBP20001937,110069100
http://statistics.data.gov.uk/id/local-authority/29UP,Tonbridge & Malling Borough Council,10/13/2021,0011043303/1,11043303, 195.70,K T Fire Protection Ltd,00057000,,BRREP Servicing - FireAlarmSys,Gibson Building East,M15KGP20001937,110069101
http://statistics.data.gov.uk/id/local-authority/29UP,Tonbridge & Malling Borough Council,10/13/2021,0011043304/1,11043304, 107.00,K T Fire Protection Ltd,00057000,,BRREP Servicing - FireAlarmSys,Tonbridge Castle Gatehouse,M15HKP20001937,110069113
http://statistics.data.gov.uk/id/local-authority/29UP,Tonbridge & Malling Borough Council,10/13/2021,0011043305/1,11043305, 68.00,K T Fire Protection Ltd,00057000,,BRREP Servicing - FireAlarmSys,Tonbridge Castle / CAB,M15KFP20001937,110069102
http://statistics.data.gov.uk/id/local-authority/29UP,Tonbridge & Malling Borough Council,10/13/2021,0011043306/1,11043306, 400.00,K T Fire Protection Ltd,00057000,,BRREP Servicing - FireAlarmSys,Larkfield Leisure Centre,M15HDP20001937,110069104
http://statistics.data.gov.uk/id/local-authority/29UP,Tonbridge & Malling Borough Council,10/13/2021,0011043307/1,11043307, 229.88,Broadwater Technologies,01534500,,BRREP Servicing - pool plant,Tonbridge Swimming Pool,M15HBP20001910,110069194
http://statistics.data.gov.uk/id/local-authority/29UP,Tonbridge & Malling Borough Council,10/13/2021,0011043308/1,11043308, 5617.00,Broadwater Technologies,01534500,,BRREP Servicing - pool plant,Tonbridge Swimming Pool,M15HBP20001910,110068976
http://statistics.data.gov.uk/id/local-authority/29UP,Tonbridge & Malling Borough Council,10/13/2021,0011043309/1,11043309, 1320.00,KH Recruitment Ltd,01738900,,Temporary Staff,Admin & Prop Sals&Overheads,D01AADA1211300,
http://statistics.data.gov.uk/id/local-authority/29UP,Tonbridge & Malling Borough Council,10/13/2021,0011043310/1,11043310, 1562.00,Thomson Snell & Passmore,00101700,,Legal Fees,Legal Sals&Overheads,D01ARDR0044002,
http://statistics.data.gov.uk/id/local-authority/29UP,Tonbridge & Malling Borough Council,10/13/2021,0011043311/1,11043311, 125.00,A One Event Services,01776600,,Re-opening High Streets,Eco Dev & Reg Gen Bus Support,D52TDCV1948076,
http://statistics.data.gov.uk/id/local-authority/29UP,Tonbridge & Malling Borough Council,10/13/2021,0011043313/1,11043313, 408.00,Clearway Environmental Services (UK) lTD,01811200,,BRREP Response - General,Land Review,M15MAP50001997,
http://statistics.data.gov.uk/id/local-authority/29UP,Tonbridge & Malling Borough Council,10/13/2021,0011043314/1,11043314, 85.00,Security & Electronic Solutions Ltd,01379500,,BRREP Servicing - CCTV,Tonbridge Swimming Pool,M15HBP20001952,
http://statistics.data.gov.uk/id/local-authority/29UP,Tonbridge & Malling Borough Council,10/13/2021,0011043315/1,11043315, 50.00,Ashford Borough Council,00005800,,Hospitality,Mayoral & Other Member Support,D29LX000048003,
http://statistics.data.gov.uk/id/local-authority/29UP,Tonbridge & Malling Borough Council,10/13/2021,0011043316/1,11043316, 800.00,Automated Limited,00007000,,BRREP Serv Internal Lighting,Tonbridge Swimming Pool,M15HBP20001957,
http://statistics.data.gov.uk/id/local-authority/29UP,Tonbridge & Malling Borough Council,10/13/2021,0011043317/1,11043317, 292.50,Nova Lifts,01735600,,BRREP Servicing - lifts,Leis Man Poult Wood Golf Centr,M15HEP20001930,
http://statistics.data.gov.uk/id/local-authority/29UP,Tonbridge & Malling Borough Council,10/13/2021,0011043318/1,11043318, 282.50,K T Fire Protection Ltd,00057000,,BRREP Servicing - FireAlarmSys,Gibson Building West,M15KBP20001937,
http://statistics.data.gov.uk/id/local-authority/29UP,Tonbridge & Malling Borough Council,10/13/2021,0011043319/1,11043319, 195.00,K T Fire Protection Ltd,00057000,,BRREP Servicing - FireAlarmSys,Gibson Building West,M15KBP20001937,
http://statistics.data.gov.uk/id/local-authority/29UP,Tonbridge & Malling Borough Council,10/13/2021,0011043320/1,11043320, 97.46,Synecore Ltd,01818600,,BRREP Servicing-Air Condition,Leis Man Poult Wood Golf Centr,M15HEP20001935,
http://statistics.data.gov.uk/id/local-authority/29UP,Tonbridge & Malling Borough Council,10/13/2021,0012008139/1,12008139, 82.99,CCS Media Ltd,00018000,,Purchases,Information Technology,D27KD000040101,410032054
http://statistics.data.gov.uk/id/local-authority/29UP,Tonbridge & Malling Borough Council,10/13/2021,0012008139/2,12008139, 2.00,CCS Media Ltd,00018000,,Delivery Expenses,Information Technology,D27KD000044069,410032054
http://statistics.data.gov.uk/id/local-authority/29UP,Tonbridge & Malling Borough Council,10/13/2021,0012008140/1,12008140, 9000.00,SureCloud Limited,01155300,,Consultancy Fees,Information Technology,D27KD000044011,410032058
http://statistics.data.gov.uk/id/local-authority/29UP,Tonbridge & Malling Borough Council,10/13/2021,0012008140/2,12008140, 4020.00,SureCloud Limited,01155300,,Software Hire & Support,Information Technology,D27KD000044059,410032058
http://statistics.data.gov.uk/id/local-authority/29UP,Tonbridge & Malling Borough Council,10/13/2021,0012008141/1,12008141, 16.32,Amazon EU SARL,01738400,,Purchases,Information Technology,D27KD000040101,410032061
http://statistics.data.gov.uk/id/local-authority/29UP,Tonbridge & Malling Borough Council,10/13/2021,0012008142/1,12008142, 11.66,Amazon EU SARL,01738400,,Purchases,Information Technology,D27KD000040101,410032061
http://statistics.data.gov.uk/id/local-authority/29UP,Tonbridge & Malling Borough Council,10/13/2021,0012008143/3,12008143, 816.75,Canon (UK) Limited,00298700,,Maintenance - Ancillary Equip,Information Technology,D27KD000040137,
http://statistics.data.gov.uk/id/local-authority/29UP,Tonbridge & Malling Borough Council,10/13/2021,0012008145/1,12008145, 823.73,NTT Cloud Communications,01794600,,Software Hire & Support,Information Technology,D27KD000044059,
http://statistics.data.gov.uk/id/local-authority/29UP,Tonbridge & Malling Borough Council,10/13/2021,0012008146/1,12008146, 2027.00,Dataquest Ltd - CC Engineering Limited,01233100,438498209,Maintenance - Ancillary Equip,Information Technology,D27KD000040137,410032039
http://statistics.data.gov.uk/id/local-authority/29UP,Tonbridge & Malling Borough Council,10/13/2021,0021037503/1,21037503, 765.08,Atlas Facilities Managment Limited ,01075900,,Maintenance of Grounds,Countryside/Woodland Mgt,B22LG000020402,210056200
http://statistics.data.gov.uk/id/local-authority/29UP,Tonbridge & Malling Borough Council,10/13/2021,0021037504/1,21037504, 620.00,Atlas Facilities Managment Limited ,01075900,,Gates / Security,Patrolling,B22LF000044017,210056489
http://statistics.data.gov.uk/id/local-authority/29UP,Tonbridge & Malling Borough Council,10/13/2021,0021037505/1,21037505, 527.40,G.L. & R.G. Bourne,00737500,,Gates / Security,Haysden Country Park,B22LC000044017,210056214
http://statistics.data.gov.uk/id/local-authority/29UP,Tonbridge & Malling Borough Council,10/13/2021,0021037506/1,21037506, 35.00,G.L. & R.G. Bourne,00737500,,Maintenance of Grounds,Haysden Country Park,B22LC000020402,210056293
http://statistics.data.gov.uk/id/local-authority/29UP,Tonbridge & Malling Borough Council,10/13/2021,0021037507/1,21037507, 72.30,G.L. & R.G. Bourne,00737500,,Gates / Security,Haysden Country Park,B22LC000044017,210055850
http://statistics.data.gov.uk/id/local-authority/29UP,Tonbridge & Malling Borough Council,10/13/2021,0021037508/1,21037508, 6.00,G.L. & R.G. Bourne,00737500,,Gates / Security,Haysden Country Park,B22LC000044017,210056214
http://statistics.data.gov.uk/id/local-authority/29UP,Tonbridge & Malling Borough Council,10/13/2021,0021037509/1,21037509, 4.80,G.L. & R.G. Bourne,00737500,,Gates / Security,Haysden Country Park,B22LC000044017,210055850
http://statistics.data.gov.uk/id/local-authority/29UP,Tonbridge & Malling Borough Council,10/13/2021,0021037510/3,21037510, 171.50,Countrystyle Group,00835900,781981681,Trade Refuse Charges,Leybourne Lakes Country Park,B22LK000044008,
http://statistics.data.gov.uk/id/local-authority/29UP,Tonbridge & Malling Borough Council,10/13/2021,0022025832/3,22025832, 495.00,KH Recruitment Ltd,01738900,,Temporary Staff,St Scene & Leis Sals&Overheads,D01AGDG3011300,
http://statistics.data.gov.uk/id/local-authority/29UP,Tonbridge & Malling Borough Council,10/13/2021,0022025833/7,22025833, 536.40,Specialist Hygiene Services,01466100,,Cleaning & Domestic Supplies,Haysden Country Park,B22LC000026001,
http://statistics.data.gov.uk/id/local-authority/29UP,Tonbridge & Malling Borough Council,10/13/2021,0022025833/8,22025833, 536.40,Specialist Hygiene Services,01466100,,Cleaning & Domestic Supplies,Leybourne Lakes Country Park,B22LK000026001,
http://statistics.data.gov.uk/id/local-authority/29UP,Tonbridge & Malling Borough Council,10/13/2021,0022025833/9,22025833, 7096.88,Specialist Hygiene Services,01466100,,Contract Payments,Public Conveniences,H22SC000054001,
http://statistics.data.gov.uk/id/local-authority/29UP,Tonbridge & Malling Borough Council,10/13/2021,0022025834/3,22025834, 617.21,Carpet Giant ,01645200,,Repairs & Mtce to Buildings,Homelessness,C01AATNHS20101,
http://statistics.data.gov.uk/id/local-authority/29UP,Tonbridge & Malling Borough Council,10/13/2021,0022025835/3,22025835, 763.31,G2 Recruitment Solutions,01786000,,Temporary Staff,Env Hlth & Hsg Sals&Overheads,D01AVDV0711300,
http://statistics.data.gov.uk/id/local-authority/29UP,Tonbridge & Malling Borough Council,10/13/2021,0022025836/1,22025836, 250.00,ReferAll Ltd,01817700,,Healthy Living Initiatives,Public Health - Healthy Living,H40SYVH0048145,220003158
http://statistics.data.gov.uk/id/local-authority/29UP,Tonbridge & Malling Borough Council,10/13/2021,0022025837/1,22025837, 650.00,REDACTED PERSONAL DATA,01818000,,Professional Fees,Homelessness,C01AAROUG44001,
http://statistics.data.gov.uk/id/local-authority/29UP,Tonbridge & Malling Borough Council,10/13/2021,0022025837/2,22025837, 650.00,REDACTED PERSONAL DATA,01818000,,Professional Fees,Homelessness,C01AAROUG44001,
http://statistics.data.gov.uk/id/local-authority/29UP,Tonbridge & Malling Borough Council,10/13/2021,0022025838/7,22025838, 1239.50,Vivid Resourcing,01773700,,Temporary Staff,Env Hlth & Hsg Sals&Overheads,D01AVDV0711300,
http://statistics.data.gov.uk/id/local-authority/29UP,Tonbridge & Malling Borough Council,10/13/2021,0022025840/1,22025840, 3135.00,1st  Steps Housing Kent,01716100,,Temporary Accommodation,Homelessness,C01AA000044051,
http://statistics.data.gov.uk/id/local-authority/29UP,Tonbridge & Malling Borough Council,10/13/2021,0022025842/1,22025842, 3621.51,Clarion Housing,01776300,,Temporary Accommodation,Homelessness,C01AA000044051,
http://statistics.data.gov.uk/id/local-authority/29UP,Tonbridge & Malling Borough Council,10/13/2021,0022025843/1,22025843, 208.20,Countrystyle Group,00835900,781981681,Plastic Recycling,Dry Recycling,H34SR000054019,
http://statistics.data.gov.uk/id/local-authority/29UP,Tonbridge & Malling Borough Council,10/13/2021,0022025844/1,22025844, 4575.00,House to Home Lettings Ltd ,01647600,,Temporary Accommodation,Homelessness,C01AA000044051,
http://statistics.data.gov.uk/id/local-authority/29UP,Tonbridge & Malling Borough Council,10/13/2021,0022025845/1,22025845, 930.00,Kent Property Services,01722500,,Temporary Accommodation,Homelessness,C01AA000044051,
http://statistics.data.gov.uk/id/local-authority/29UP,Tonbridge & Malling Borough Council,10/13/2021,0022025846/1,22025846, 686.48,Maidstone Borough Council,01173700,,Temporary Accommodation,Homelessness,C01AAMAUN44051,
http://statistics.data.gov.uk/id/local-authority/29UP,Tonbridge & Malling Borough Council,10/13/2021,0022025849/1,22025849, 460.00,RoSPA Enterprises Ltd,00085200,,Professional Membership,Env Hlth & Hsg Sals&Overheads,D01AVDV0147001,
http://statistics.data.gov.uk/id/local-authority/29UP,Tonbridge & Malling Borough Council,10/13/2021,0022025850/1,22025850, 5448.00,Simply Rented Ltd ,01691400,,Temporary Accommodation,Homelessness,C01AA000044051,
http://statistics.data.gov.uk/id/local-authority/29UP,Tonbridge & Malling Borough Council,10/13/2021,0022025851/1,22025851, 2154.83,The Care Group-Housing & Care Trust,01699600,,Professional Fees,Homelessness,C01AA000044001,
http://statistics.data.gov.uk/id/local-authority/29UP,Tonbridge & Malling Borough Council,10/13/2021,0022025852/1,22025852, 26819.00,Social & Community Care,01768400,,Temporary Accommodation,Homelessness,C01AA000044051,
http://statistics.data.gov.uk/id/local-authority/29UP,Tonbridge & Malling Borough Council,10/13/2021,0022025853/1,22025853, 20416.00,SPA CAFFE LIMITED,00127100,,Temporary Accommodation,Homelessness,C01AA000044051,
http://statistics.data.gov.uk/id/local-authority/29UP,Tonbridge & Malling Borough Council,10/13/2021,0022025854/3,22025854, 400.00,Green Recycling LTD,01563000,,Paper Recycling,Dry Recycling,H34SR000054024,
http://statistics.data.gov.uk/id/local-authority/29UP,Tonbridge & Malling Borough Council,10/13/2021,0022025855/3,22025855, 800.00,Green Recycling LTD,01563000,,Paper Recycling,Dry Recycling,H34SR000054024,
http://statistics.data.gov.uk/id/local-authority/29UP,Tonbridge & Malling Borough Council,10/13/2021,0022025856/3,22025856, 144.00,Monitor Pest Control Ltd,01476700,,Other Expenses,Pest Control,H24SE000048010,
http://statistics.data.gov.uk/id/local-authority/29UP,Tonbridge & Malling Borough Council,10/13/2021,0031018220/1,31018220, 500.00,Traffic Enforcement Centre,00604200,,Adjudication & Enforcement Ser,Parking Off-Street,E10HA000044230,
http://statistics.data.gov.uk/id/local-authority/29UP,Tonbridge & Malling Borough Council,10/13/2021,0031018220/2,31018220, 500.00,Traffic Enforcement Centre,00604200,,Adjudication & Enforcement Ser,Parking On-Street,E10HD000044230,
http://statistics.data.gov.uk/id/local-authority/29UP,Tonbridge & Malling Borough Council,10/13/2021,0031018221/1,31018221, 156.30,British Telecommunications Plc,00012800,,Maintenance - General,Security Services Management,E09GA000040135,
http://statistics.data.gov.uk/id/local-authority/29UP,Tonbridge & Malling Borough Council,10/13/2021,0031018222/1,31018222, 3750.00,Chroma Vision Ltd,00891600,,CCTV Monitoring Station,Security Services Management,E09GA000051020,310042616
http://statistics.data.gov.uk/id/local-authority/29UP,Tonbridge & Malling Borough Council,10/13/2021,0031018223/1,31018223, 25817.92,Tunbridge Wells Borough Council,00844600,,CCTV Monitoring Station,Security Services Management,E09GA000051020,
http://statistics.data.gov.uk/id/local-authority/29UP,Tonbridge & Malling Borough Council,10/13/2021,0031018224/1,31018224, 299.40,SKF Contractors Ltd,00092000,,Repair & Mtce of Fixed Plant,Boro Highways & Emergency Oper,E01AA000020501,310042722
http://statistics.data.gov.uk/id/local-authority/29UP,Tonbridge & Malling Borough Council,10/13/2021,0031018225/1,31018225, 450.87,CDER Group,01773300,,Adjudication & Enforcement Ser,Parking Off-Street,E10HA000044230,
http://statistics.data.gov.uk/id/local-authority/29UP,Tonbridge & Malling Borough Council,10/13/2021,0031018227/1,31018227, 156.30,British Telecommunications Plc,00012800,,Maintenance - General,Security Services Management,E09GA000040135,
http://statistics.data.gov.uk/id/local-authority/29UP,Tonbridge & Malling Borough Council,10/13/2021,0032009267/1,32009267, 1000.00,DHA Planning Ltd,01553900,,Professional Fees,Planning Policy,A01AF000044001,320003289
http://statistics.data.gov.uk/id/local-authority/29UP,Tonbridge & Malling Borough Council,10/13/2021,0032009268/1,32009268, 291.48,KM Media Group Ltd,00053900,,Advertising General,Development Management,A01ABZ99944216,320003343
http://statistics.data.gov.uk/id/local-authority/29UP,Tonbridge & Malling Borough Council,10/13/2021,0032009269/1,32009269, 114.51,KM Media Group Ltd,00053900,,Advertising General,Development Management,A01ABZ99944216,320003346
http://statistics.data.gov.uk/id/local-authority/29UP,Tonbridge & Malling Borough Council,10/13/2021,0041033433/3,41033433, 975.00,Morgan Hunt UK Ltd,01086900,,Temporary Staff,Finance Sals&Overheads,D01AFDF1111300,
http://statistics.data.gov.uk/id/local-authority/29UP,Tonbridge & Malling Borough Council,10/13/2021,0041033536/3,41033536, 608.40,Morgan Hunt UK Ltd,01086900,,Temporary Staff,Finance Sals&Overheads,D01AFDF1111300,
http://statistics.data.gov.uk/id/local-authority/29UP,Tonbridge & Malling Borough Council,10/13/2021,0041033537/3,41033537, 925.00,Morgan Hunt UK Ltd,01086900,,Temporary Staff,Finance Sals&Overheads,D01AFDF1111300,
http://statistics.data.gov.uk/id/local-authority/29UP,Tonbridge & Malling Borough Council,10/13/2021,0041033538/3,41033538, 709.80,Morgan Hunt UK Ltd,01086900,,Temporary Staff,Finance Sals&Overheads,D01AFDF1111300,
http://statistics.data.gov.uk/id/local-authority/29UP,Tonbridge & Malling Borough Council,10/13/2021,0041033539/3,41033539, 980.50,Morgan Hunt UK Ltd,01086900,,Temporary Staff,Finance Sals&Overheads,D01AFDF1111300,
http://statistics.data.gov.uk/id/local-authority/29UP,Tonbridge & Malling Borough Council,10/13/2021,0041033540/3,41033540, 482.63,KH Recruitment Ltd,01738900,,Temporary Staff,Finance Sals&Overheads,D01AFDF1111300,
http://statistics.data.gov.uk/id/local-authority/29UP,Tonbridge & Malling Borough Council,10/13/2021,0041033541/3,41033541, 690.46,Maidstone Borough Council,01173700,,Bailiffs Commission,Local Revenue & NNDR Collect,D41QA000044075,
http://statistics.data.gov.uk/id/local-authority/29UP,Tonbridge & Malling Borough Council,10/13/2021,0041033544/1,41033544, 105.00,Adelante Software Limited,01393800,812115871,Credit Card Commission,Banking Arrangements,D43QK000044082,
http://statistics.data.gov.uk/id/local-authority/29UP,Tonbridge & Malling Borough Council,10/13/2021,0041033545/1,41033545, 5252.00,Kent County Council,00322500,,Tracing Services,Local Revenue & NNDR Collect,D41QA000044091,410032059
http://statistics.data.gov.uk/id/local-authority/29UP,Tonbridge & Malling Borough Council,10/13/2021,0041033548/1,41033548, 3120.00,DG Consultancy,01617000,,Contract Services,Finance Sals&Overheads,D01AFDF0844005,410032012
http://statistics.data.gov.uk/id/local-authority/29UP,Tonbridge & Malling Borough Council,10/13/2021,0051008604/1,51008604, 7450.00,Learning Nexus Ltd,01129100,,Ext Fees/Prof & Tech,Training,D10DC000013561,
http://statistics.data.gov.uk/id/local-authority/29UP,Tonbridge & Malling Borough Council,10/13/2021,0051008605/1,51008605, 575.00,L R Driving Ltd,01619900,,Ext Fees/Prof & Tech,Training,D10DCDE0213561,510010519
http://statistics.data.gov.uk/id/local-authority/29UP,Tonbridge & Malling Borough Council,10/13/2021,0051008606/1,51008606, 75.00,Town & Country Planning Association,01403200,,Ext Fees/Prof & Tech,Training,D10DCDJ0013561,510010517
http://statistics.data.gov.uk/id/local-authority/29UP,Tonbridge & Malling Borough Council,10/14/2021,0041033557/1,41033557, 15.00,National Westminster Bank Plc,00069400,,Bank Charges,Banking Arrangements,D43QK000044222,
http://statistics.data.gov.uk/id/local-authority/29UP,Tonbridge & Malling Borough Council,10/20/2021,0011043321/1,11043321, 108.00,Kent Area Ramblers Association,01747700,,Purchases,TIC Stock Account,K18AX000001002,
http://statistics.data.gov.uk/id/local-authority/29UP,Tonbridge & Malling Borough Council,10/20/2021,0011043322/1,11043322, 3000.00,Cornerstones Barristers,01359100,,Legal Fees,Legal Sals&Overheads,D01ARDR0044002,
http://statistics.data.gov.uk/id/local-authority/29UP,Tonbridge & Malling Borough Council,10/20/2021,0011043323/1,11043323, 806.00,Thomson Snell & Passmore,00101700,,Legal Fees,Legal Sals&Overheads,D01ARDR0044002,
http://statistics.data.gov.uk/id/local-authority/29UP,Tonbridge & Malling Borough Council,10/20/2021,0011043324/1,11043324, 341.00,Thomson Snell & Passmore,00101700,,Legal Fees,Legal Sals&Overheads,D01ARDR0044002,
http://statistics.data.gov.uk/id/local-authority/29UP,Tonbridge & Malling Borough Council,10/20/2021,0011043325/1,11043325, 1426.00,Thomson Snell & Passmore,00101700,,Legal Fees,Legal Sals&Overheads,D01ARDR0044002,
http://statistics.data.gov.uk/id/local-authority/29UP,Tonbridge & Malling Borough Council,10/20/2021,0011043326/1,11043326, 434.00,Thomson Snell & Passmore,00101700,,Legal Fees,Legal Sals&Overheads,D01ARDR0044002,
http://statistics.data.gov.uk/id/local-authority/29UP,Tonbridge & Malling Borough Council,10/20/2021,0011043327/1,11043327, 496.00,Thomson Snell & Passmore,00101700,,Legal Fees,Legal Sals&Overheads,D01ARDR0044002,
http://statistics.data.gov.uk/id/local-authority/29UP,Tonbridge & Malling Borough Council,10/20/2021,0011043328/1,11043328, 19.75,Oasis Group  - Box-It South East,00966800,931579211,Purchases,Electoral Registration,D31MF000040101,
http://statistics.data.gov.uk/id/local-authority/29UP,Tonbridge & Malling Borough Council,10/20/2021,0011043329/1,11043329, 840.00,Venn Group Ltd,00914300,,Temporary Staff,Legal Sals&Overheads,D01ARDR0011300,
http://statistics.data.gov.uk/id/local-authority/29UP,Tonbridge & Malling Borough Council,10/20/2021,0011043330/1,11043330, 1650.00,KH Recruitment Ltd,01738900,,Temporary Staff,Admin & Prop Sals&Overheads,D01AADA1211300,
http://statistics.data.gov.uk/id/local-authority/29UP,Tonbridge & Malling Borough Council,10/20/2021,0011043333/1,11043333, 3500.00,Eccles Village Stores,01819100,,H&CG Fund Council Specific,Eco Dev & Reg Gen Bus Support,D52TD000047027,
http://statistics.data.gov.uk/id/local-authority/29UP,Tonbridge & Malling Borough Council,10/20/2021,0011043335/1,11043335, 40.00,The Mayor's Charity Appeal,00943800,,Hospitality,Mayoral & Other Member Support,D29LX000048003,
http://statistics.data.gov.uk/id/local-authority/29UP,Tonbridge & Malling Borough Council,10/20/2021,0011043336/1,11043336, 787.50,Driven to perfection,01541000,,Mayors Transport Allowance,Mayoral & Other Member Support,D29LX000034111,
http://statistics.data.gov.uk/id/local-authority/29UP,Tonbridge & Malling Borough Council,10/20/2021,0011043337/1,11043337, 3591.00,Prosec General Security Ltd,00810600,,BRREP Resp - Vandal / Break-In,Grnd Mtce Poult Wood Golf Cent,M15HFP50001998,
http://statistics.data.gov.uk/id/local-authority/29UP,Tonbridge & Malling Borough Council,10/20/2021,0011043339/3,11043339, 204.00,Clearway Environmental Services (UK) lTD,01811200,,BRREP Response - General,Land Review,M15MAP50001997,
http://statistics.data.gov.uk/id/local-authority/29UP,Tonbridge & Malling Borough Council,10/20/2021,0011043340/3,11043340, 85.16,Duplo International Ltd,00973200,,Purchases - Paper,Printing,D22GA000040102,
http://statistics.data.gov.uk/id/local-authority/29UP,Tonbridge & Malling Borough Council,10/20/2021,0011043341/3,11043341, 300.00,Laddingford Engineering Ltd,00782700,,BRREP Flood gate tests,Tonbridge Swimming Pool,M15HBP30001996,
http://statistics.data.gov.uk/id/local-authority/29UP,Tonbridge & Malling Borough Council,10/20/2021,0011043342/1,11043342, 3800.00,G C Industrial Heating Services,00578100,,BRREP Legionella Certification,Larkfield Leisure Centre,M15HDP30001995,110069108
http://statistics.data.gov.uk/id/local-authority/29UP,Tonbridge & Malling Borough Council,10/20/2021,0011043343/1,11043343, 258.75,Marine And Industrial Pump Services,00062800,,BRREP Servicing - pool plant,Larkfield Leisure Centre,M15HDP20001910,110069205
http://statistics.data.gov.uk/id/local-authority/29UP,Tonbridge & Malling Borough Council,10/20/2021,0011043344/1,11043344, 624.00,BML Building Services Ltd,01505000,,BRREP Response - General,Tonbridge Castle / CAB,M15KFP50001997,110069250
http://statistics.data.gov.uk/id/local-authority/29UP,Tonbridge & Malling Borough Council,10/20/2021,0011043345/3,11043345, 1856.72,Kent County Council,00322500,,Kent Highways,Local Land Charges,D35NK000044240,
http://statistics.data.gov.uk/id/local-authority/29UP,Tonbridge & Malling Borough Council,10/20/2021,0011043346/3,11043346, 1730.00,Thomson Snell & Passmore,00101700,,Legal Fees,Legal Sals&Overheads,D01ARDR0044002,
http://statistics.data.gov.uk/id/local-authority/29UP,Tonbridge & Malling Borough Council,10/20/2021,0011043347/3,11043347, 522.00,Bevan Brittan LLP,01096600,,Legal Fees,Legal Sals&Overheads,D01ARDR0044002,
http://statistics.data.gov.uk/id/local-authority/29UP,Tonbridge & Malling Borough Council,10/20/2021,0012008147/10,12008147, 3.10,O2 UK Ltd,01268000,,Mobile Telephones,Chief Exec Sals&Overheads,D01ACDC0245013,
http://statistics.data.gov.uk/id/local-authority/29UP,Tonbridge & Malling Borough Council,10/20/2021,0012008147/11,12008147, 3.00,O2 UK Ltd,01268000,,Mobile Telephones,Technical Sals&Overheads,D01AEDE0045013,
http://statistics.data.gov.uk/id/local-authority/29UP,Tonbridge & Malling Borough Council,10/20/2021,0012008147/12,12008147, 6.00,O2 UK Ltd,01268000,,Mobile Telephones,Technical Sals&Overheads,D01AEDE0145013,
http://statistics.data.gov.uk/id/local-authority/29UP,Tonbridge & Malling Borough Council,10/20/2021,0012008147/13,12008147, 9.00,O2 UK Ltd,01268000,,Mobile Telephones,Technical Sals&Overheads,D01AEDE0245013,
http://statistics.data.gov.uk/id/local-authority/29UP,Tonbridge & Malling Borough Council,10/20/2021,0012008147/14,12008147, 39.00,O2 UK Ltd,01268000,,Mobile Telephones,Technical Sals&Overheads,D01AEDE0445013,
http://statistics.data.gov.uk/id/local-authority/29UP,Tonbridge & Malling Borough Council,10/20/2021,0012008147/15,12008147, 3.00,O2 UK Ltd,01268000,,Mobile Telephones,Technical Sals&Overheads,D01AEDE0545013,
http://statistics.data.gov.uk/id/local-authority/29UP,Tonbridge & Malling Borough Council,10/20/2021,0012008147/16,12008147, 12.00,O2 UK Ltd,01268000,,Mobile Telephones,Finance Sals&Overheads,D01AFDF0045013,
http://statistics.data.gov.uk/id/local-authority/29UP,Tonbridge & Malling Borough Council,10/20/2021,0012008147/17,12008147, 9.00,O2 UK Ltd,01268000,,Mobile Telephones,Finance Sals&Overheads,D01AFDF0945013,
http://statistics.data.gov.uk/id/local-authority/29UP,Tonbridge & Malling Borough Council,10/20/2021,0012008147/18,12008147, 12.00,O2 UK Ltd,01268000,,Mobile Telephones,St Scene & Leis Sals&Overheads,D01AGDG0045013,
http://statistics.data.gov.uk/id/local-authority/29UP,Tonbridge & Malling Borough Council,10/20/2021,0012008147/19,12008147, 6.00,O2 UK Ltd,01268000,,Mobile Telephones,St Scene & Leis Sals&Overheads,D01AGDG0145013,
http://statistics.data.gov.uk/id/local-authority/29UP,Tonbridge & Malling Borough Council,10/20/2021,0012008147/20,12008147, 9.00,O2 UK Ltd,01268000,,Mobile Telephones,St Scene & Leis Sals&Overheads,D01AGDG0445013,
http://statistics.data.gov.uk/id/local-authority/29UP,Tonbridge & Malling Borough Council,10/20/2021,0012008147/21,12008147, 30.10,O2 UK Ltd,01268000,,Mobile Telephones,St Scene & Leis Sals&Overheads,D01AGDG2045013,
http://statistics.data.gov.uk/id/local-authority/29UP,Tonbridge & Malling Borough Council,10/20/2021,0012008147/22,12008147, 9.00,O2 UK Ltd,01268000,,Mobile Telephones,Planning Sals&Overheads,D01AJDJ0045013,
http://statistics.data.gov.uk/id/local-authority/29UP,Tonbridge & Malling Borough Council,10/20/2021,0012008147/23,12008147, 3.00,O2 UK Ltd,01268000,,Mobile Telephones,Planning Sals&Overheads,D01AJDJ0145013,
http://statistics.data.gov.uk/id/local-authority/29UP,Tonbridge & Malling Borough Council,10/20/2021,0012008147/24,12008147, 15.56,O2 UK Ltd,01268000,,Mobile Telephones,Planning Sals&Overheads,D01AJDJ0245013,
http://statistics.data.gov.uk/id/local-authority/29UP,Tonbridge & Malling Borough Council,10/20/2021,0012008147/25,12008147, 6.00,O2 UK Ltd,01268000,,Mobile Telephones,Legal Sals&Overheads,D01ARDR0045013,
http://statistics.data.gov.uk/id/local-authority/29UP,Tonbridge & Malling Borough Council,10/20/2021,0012008147/26,12008147, 12.00,O2 UK Ltd,01268000,,Mobile Telephones,Legal Sals&Overheads,D01ARDR0445013,
http://statistics.data.gov.uk/id/local-authority/29UP,Tonbridge & Malling Borough Council,10/20/2021,0012008147/27,12008147, 3.00,O2 UK Ltd,01268000,,Mobile Telephones,Legal Sals&Overheads,D01ARDR0745013,
http://statistics.data.gov.uk/id/local-authority/29UP,Tonbridge & Malling Borough Council,10/20/2021,0012008147/28,12008147, 3.00,O2 UK Ltd,01268000,,Mobile Telephones,Env Hlth & Hsg Sals&Overheads,D01AVDV0045013,
http://statistics.data.gov.uk/id/local-authority/29UP,Tonbridge & Malling Borough Council,10/20/2021,0012008147/29,12008147, 9.00,O2 UK Ltd,01268000,,Mobile Telephones,Env Hlth & Hsg Sals&Overheads,D01AVDV0145013,
http://statistics.data.gov.uk/id/local-authority/29UP,Tonbridge & Malling Borough Council,10/20/2021,0012008147/3,12008147, 3.00,O2 UK Ltd,01268000,,Telephones - General,Open Spaces & Amenity Areas,B22LE000045010,
http://statistics.data.gov.uk/id/local-authority/29UP,Tonbridge & Malling Borough Council,10/20/2021,0012008147/30,12008147, 6.00,O2 UK Ltd,01268000,,Mobile Telephones,Env Hlth & Hsg Sals&Overheads,D01AVDV0345013,
http://statistics.data.gov.uk/id/local-authority/29UP,Tonbridge & Malling Borough Council,10/20/2021,0012008147/31,12008147, 9.00,O2 UK Ltd,01268000,,Mobile Telephones,Customer Services,D23CS000045013,
http://statistics.data.gov.uk/id/local-authority/29UP,Tonbridge & Malling Borough Council,10/20/2021,0012008147/32,12008147, 3.00,O2 UK Ltd,01268000,,Mobile Telephones,Tonbridge Gateway,D23TG000045013,
http://statistics.data.gov.uk/id/local-authority/29UP,Tonbridge & Malling Borough Council,10/20/2021,0012008147/33,12008147, 624.00,O2 UK Ltd,01268000,,Leased Lines & Modems,Information Technology,D27KD000045011,
http://statistics.data.gov.uk/id/local-authority/29UP,Tonbridge & Malling Borough Council,10/20/2021,0012008147/34,12008147, 3.00,O2 UK Ltd,01268000,,Mobile Telephones,Mayoral & Other Member Support,D29LX000045013,
http://statistics.data.gov.uk/id/local-authority/29UP,Tonbridge & Malling Borough Council,10/20/2021,0012008147/35,12008147, 3.00,O2 UK Ltd,01268000,,Emergency Out of Hours Recharg,Refuse Collection,H20SA000045030,
http://statistics.data.gov.uk/id/local-authority/29UP,Tonbridge & Malling Borough Council,10/20/2021,0012008147/36,12008147, 3.00,O2 UK Ltd,01268000,,Emergency Out of Hours Recharg,Street Scene,H23SD000045030,
http://statistics.data.gov.uk/id/local-authority/29UP,Tonbridge & Malling Borough Council,10/20/2021,0012008147/4,12008147, 6.00,O2 UK Ltd,01268000,,Telephones - General,Leybourne Lakes Country Park,B22LK000045010,
http://statistics.data.gov.uk/id/local-authority/29UP,Tonbridge & Malling Borough Council,10/20/2021,0012008147/5,12008147, 6.00,O2 UK Ltd,01268000,,Mobile Telephones,Admin & Prop Sals&Overheads,D01AADA0045013,
http://statistics.data.gov.uk/id/local-authority/29UP,Tonbridge & Malling Borough Council,10/20/2021,0012008147/6,12008147, 6.00,O2 UK Ltd,01268000,,Mobile Telephones,Admin & Prop Sals&Overheads,D01AADA1045013,
http://statistics.data.gov.uk/id/local-authority/29UP,Tonbridge & Malling Borough Council,10/20/2021,0012008147/7,12008147, 8.05,O2 UK Ltd,01268000,,Mobile Telephones,Admin & Prop Sals&Overheads,D01AADA1245013,
http://statistics.data.gov.uk/id/local-authority/29UP,Tonbridge & Malling Borough Council,10/20/2021,0012008147/8,12008147, 3.00,O2 UK Ltd,01268000,,Mobile Telephones,Chief Exec Sals&Overheads,D01ACDC0045013,
http://statistics.data.gov.uk/id/local-authority/29UP,Tonbridge & Malling Borough Council,10/20/2021,0012008147/9,12008147, 3.00,O2 UK Ltd,01268000,,Mobile Telephones,Chief Exec Sals&Overheads,D01ACDC0145013,
http://statistics.data.gov.uk/id/local-authority/29UP,Tonbridge & Malling Borough Council,10/20/2021,0012008148/1,12008148, 285.00,Idox Software Ltd,00962400,,Software Hire & Support,Information Technology,D27KD000044059,
http://statistics.data.gov.uk/id/local-authority/29UP,Tonbridge & Malling Borough Council,10/20/2021,0012008149/1,12008149, 1200.00,Idox Software Ltd,00962400,,Software Hire & Support,Information Technology,D27KD000044059,
http://statistics.data.gov.uk/id/local-authority/29UP,Tonbridge & Malling Borough Council,10/20/2021,0012008150/1,12008150, 1323.00,Sumillion Ltd,01726600,,Purchases,Information Technology,D27KD000040101,410032068
http://statistics.data.gov.uk/id/local-authority/29UP,Tonbridge & Malling Borough Council,10/20/2021,0012008151/1,12008151, 16546.39,Phoenix Software Ltd,00077400,755349015,Software Hire & Support,Information Technology,D27KD000044059,
http://statistics.data.gov.uk/id/local-authority/29UP,Tonbridge & Malling Borough Council,10/20/2021,0021037516/1,21037516, 1500.00,Robert Graham T/A Sustainable Land Manag,00040700,,Maintenance of Grounds,Leybourne Lakes Country Park,B22LK000020402,210056470
http://statistics.data.gov.uk/id/local-authority/29UP,Tonbridge & Malling Borough Council,10/20/2021,0021037517/3,21037517, 169.50,British Telecommunications Plc,00012800,,Telephones - General,Leybourne Lakes Country Park,B22LK000045010,
http://statistics.data.gov.uk/id/local-authority/29UP,Tonbridge & Malling Borough Council,10/20/2021,0021037518/1,21037518, 630.00,Fenland Leisure Products Ltd,01675100,,Maintenance of Play Equipment,Open Spaces & Amenity Areas,B22LE000020503,210056460
http://statistics.data.gov.uk/id/local-authority/29UP,Tonbridge & Malling Borough Council,10/20/2021,0021037519/1,21037519, 425.00,Flash Mobile Welding Services Ltd,01189200,,Maintenance of Grounds,Haysden Country Park,B22LC000020402,210056498
http://statistics.data.gov.uk/id/local-authority/29UP,Tonbridge & Malling Borough Council,10/20/2021,0021037519/2,21037519, 445.00,Flash Mobile Welding Services Ltd,01189200,,Maintenance of Grounds,Haysden Country Park,B22LC000020402,210056498
http://statistics.data.gov.uk/id/local-authority/29UP,Tonbridge & Malling Borough Council,10/20/2021,0021037520/1,21037520, 450.00,Green Oak Services,01635000,,Maintenance of Grounds,Open Spaces & Amenity Areas,B22LE000020402,210056507
http://statistics.data.gov.uk/id/local-authority/29UP,Tonbridge & Malling Borough Council,10/20/2021,0021037521/3,21037521, 58.56,Lamberhurst Engineering Ltd,01306400,,Purchases,Haysden Country Park,B22LC000040101,
http://statistics.data.gov.uk/id/local-authority/29UP,Tonbridge & Malling Borough Council,10/20/2021,0021037522/1,21037522, 8.75,Naturescape British wild flowers,01407600,,Maintenance of Grounds,Sports Grounds,B13ET000020402,210056528
http://statistics.data.gov.uk/id/local-authority/29UP,Tonbridge & Malling Borough Council,10/20/2021,0021037522/2,21037522, 12.50,Naturescape British wild flowers,01407600,,Maintenance of Grounds,Sports Grounds,B13ET000020402,210056528
http://statistics.data.gov.uk/id/local-authority/29UP,Tonbridge & Malling Borough Council,10/20/2021,0021037522/3,21037522, 8.75,Naturescape British wild flowers,01407600,,Maintenance of Grounds,Sports Grounds,B13ET000020402,210056528
http://statistics.data.gov.uk/id/local-authority/29UP,Tonbridge & Malling Borough Council,10/20/2021,0021037522/4,21037522, 4.16,Naturescape British wild flowers,01407600,,Maintenance of Grounds,Sports Grounds,B13ET000020402,210056528
http://statistics.data.gov.uk/id/local-authority/29UP,Tonbridge & Malling Borough Council,10/20/2021,0021037523/1,21037523, 795.00,Twig Trading Ltd,01602200,,Maintenance of Grounds,Leybourne Lakes Country Park,B22LK000020402,210056501
http://statistics.data.gov.uk/id/local-authority/29UP,Tonbridge & Malling Borough Council,10/20/2021,0021037524/1,21037524, 6075.00,MJ Abbott Limited,01143500,,Initial Furniture & Equipment,Capital Renewals Leisure,P05KGBC0309906,210056281
http://statistics.data.gov.uk/id/local-authority/29UP,Tonbridge & Malling Borough Council,10/20/2021,0021037525/1,21037525, 2654.00,Eiger Safety,01103300,,Tonbridge Christmas Lighting,Eco Dev & Reg Ton Chris Light,D52TF000047015,310042702
http://statistics.data.gov.uk/id/local-authority/29UP,Tonbridge & Malling Borough Council,10/20/2021,0021037526/1,21037526, 45154.76,Alliance Leisure Services Ltd,01781100,,Contract Payments,LLCP Facility Improv,P05FF000009904,220003135
http://statistics.data.gov.uk/id/local-authority/29UP,Tonbridge & Malling Borough Council,10/20/2021,0021037527/3,21037527, 175000.00,Tonbridge & Malling Leisure Trust,01469100,,General,T&M Leisure Trust,B10DA000054012,
http://statistics.data.gov.uk/id/local-authority/29UP,Tonbridge & Malling Borough Council,10/20/2021,0021037528/1,21037528, 58.00,Landscape Services Ltd,00057600,,Maintenance of Grounds,Tonbridge Castle Grounds,B22LB000020402,210056533
http://statistics.data.gov.uk/id/local-authority/29UP,Tonbridge & Malling Borough Council,10/20/2021,0021037529/1,21037529, 660.00,Green Oak Services,01635000,,Health & Safety - Trees,Countryside/Woodland Mgt,B22LG000044045,210056524
http://statistics.data.gov.uk/id/local-authority/29UP,Tonbridge & Malling Borough Council,10/20/2021,0021037530/1,21037530, 570.00,Lemon Drainage Services LTD,01761600,,Sewerage Charges,Haysden Country Park,B22LC000024003,210056532
http://statistics.data.gov.uk/id/local-authority/29UP,Tonbridge & Malling Borough Council,10/20/2021,0021037532/1,21037532, 500.00,Robert Graham T/A Sustainable Land Manag,00040700,,Maintenance of Grounds,Leybourne Lakes Country Park,B22LK000020402,210056541
http://statistics.data.gov.uk/id/local-authority/29UP,Tonbridge & Malling Borough Council,10/20/2021,0021037533/3,21037533, 92.00,Toilets+ Ltd,01039000,,Maintenance of Grounds,Leybourne Lakes Country Park,B22LK000020402,
http://statistics.data.gov.uk/id/local-authority/29UP,Tonbridge & Malling Borough Council,10/20/2021,0021037534/1,21037534, 480.00,Twig Trading Ltd,01602200,,Maintenance of Grounds,Leybourne Lakes Country Park,B22LK000020402,210056478
http://statistics.data.gov.uk/id/local-authority/29UP,Tonbridge & Malling Borough Council,10/20/2021,0022025841/1,22025841, 166.02,British Gas Services LTD,01260000,,Electricity,Homelessness,C01AAMAUN21002,
http://statistics.data.gov.uk/id/local-authority/29UP,Tonbridge & Malling Borough Council,10/20/2021,0022025857/1,22025857, 2310.00,Gregory (Kent) LTD,01310800,,Other Expenses,Disabled Facilities Grant Mand,P03AC000009908,
http://statistics.data.gov.uk/id/local-authority/29UP,Tonbridge & Malling Borough Council,10/20/2021,0022025858/1,22025858, 6888.60,Adaptec Mobilty Ltd,01785800,339578354,Other Expenses,Disabled Facilities Grant Mand,P03AC000009908,
http://statistics.data.gov.uk/id/local-authority/29UP,Tonbridge & Malling Borough Council,10/20/2021,0022025859/3,22025859, 35.04,Biffa Waste Services Ltd,01284500,,Trade Refuse Charges,Cleaning & Security,D21FD000044008,
http://statistics.data.gov.uk/id/local-authority/29UP,Tonbridge & Malling Borough Council,10/20/2021,0022025860/1,22025860, 6940.00,Kent Accommodation Ltd,01722000,,Temporary Accommodation,Homelessness,C01AA000044051,
http://statistics.data.gov.uk/id/local-authority/29UP,Tonbridge & Malling Borough Council,10/20/2021,0022025861/1,22025861, 13031.00,Less Homeless Ltd,01489300,,Temporary Accommodation,Homelessness,C01AA000044051,
http://statistics.data.gov.uk/id/local-authority/29UP,Tonbridge & Malling Borough Council,10/20/2021,0022025862/1,22025862, 10.90,Maidstone Borough Council,01173700,,Temporary Accommodation,Homelessness,C01AAMAUN44051,
http://statistics.data.gov.uk/id/local-authority/29UP,Tonbridge & Malling Borough Council,10/20/2021,0022025863/1,22025863, 10.90,Maidstone Borough Council,01173700,,Temporary Accommodation,Homelessness,C01AAMAUN44051,
http://statistics.data.gov.uk/id/local-authority/29UP,Tonbridge & Malling Borough Council,10/20/2021,0022025864/1,22025864, 25.43,Maidstone Borough Council,01173700,,Temporary Accommodation,Homelessness,C01AAMAUN44051,
http://statistics.data.gov.uk/id/local-authority/29UP,Tonbridge & Malling Borough Council,10/20/2021,0022025865/1,22025865, 70983.00,Paramount Independent Property Suppliers,01595300,,Temporary Accommodation,Homelessness,C01AA000044051,
http://statistics.data.gov.uk/id/local-authority/29UP,Tonbridge & Malling Borough Council,10/20/2021,0022025866/1,22025866, 5818.00,Premier Property Providers,01785400,,Temporary Accommodation,Homelessness,C01AA000044051,
http://statistics.data.gov.uk/id/local-authority/29UP,Tonbridge & Malling Borough Council,10/20/2021,0022025867/3,22025867, 23.03,Bulb Energy Ltd,01799000,214948301,Electricity,Homelessness,C01AATNHS21002,
http://statistics.data.gov.uk/id/local-authority/29UP,Tonbridge & Malling Borough Council,10/20/2021,0022025868/3,22025868, 1560.00,The Oyster Partnership,01196400,,Temporary Staff,Env Hlth & Hsg Sals&Overheads,D01AVDV0711300,
http://statistics.data.gov.uk/id/local-authority/29UP,Tonbridge & Malling Borough Council,10/20/2021,0022025869/3,22025869, 12.10,Bulb Energy Ltd,01799000,214948301,Electricity,Homelessness,C01AATNHS21002,
http://statistics.data.gov.uk/id/local-authority/29UP,Tonbridge & Malling Borough Council,10/20/2021,0022025870/3,22025870, 1248.00,The Oyster Partnership,01196400,,Temporary Staff,Env Hlth & Hsg Sals&Overheads,D01AVDV0711300,
http://statistics.data.gov.uk/id/local-authority/29UP,Tonbridge & Malling Borough Council,10/20/2021,0022025871/1,22025871, 6.00,Peabody South East LTD,01680900,,Other Expenses,Disabled Facilities Grant Mand,P03AC000009908,
http://statistics.data.gov.uk/id/local-authority/29UP,Tonbridge & Malling Borough Council,10/20/2021,0022025872/1,22025872, 70.09,British Gas,01148500,,Electricity,Homelessness,C01AAMAUN21002,
http://statistics.data.gov.uk/id/local-authority/29UP,Tonbridge & Malling Borough Council,10/20/2021,0022025873/1,22025873, 206.60,Countrystyle Group,00835900,781981681,Plastic Recycling,Dry Recycling,H34SR000054019,
http://statistics.data.gov.uk/id/local-authority/29UP,Tonbridge & Malling Borough Council,10/20/2021,0022025874/1,22025874, 4645.60,Countrystyle Group,00835900,781981681,Plastic Recycling,Dry Recycling,H34SR000054019,
http://statistics.data.gov.uk/id/local-authority/29UP,Tonbridge & Malling Borough Council,10/20/2021,0022025875/1,22025875, 217.80,Countrystyle Group,00835900,781981681,Plastic Recycling,Dry Recycling,H34SR000054019,
http://statistics.data.gov.uk/id/local-authority/29UP,Tonbridge & Malling Borough Council,10/20/2021,0022025876/1,22025876, 7568.40,Craemer UK LTD,01616400,,Initial Furniture & Equipment,Refuse Bins Growth/Replacement,P02DA000009906,220003151
http://statistics.data.gov.uk/id/local-authority/29UP,Tonbridge & Malling Borough Council,10/20/2021,0022025877/1,22025877, 763.31,G2 Recruitment Solutions,01786000,,Temporary Staff,Env Hlth & Hsg Sals&Overheads,D01AVDV0711300,
http://statistics.data.gov.uk/id/local-authority/29UP,Tonbridge & Malling Borough Council,10/20/2021,0022025878/1,22025878, 2466.60,Lucy and Martin Recycling LTD,01694200,,Vehicle Licences,Dry Recycling,H34SR000030105,
http://statistics.data.gov.uk/id/local-authority/29UP,Tonbridge & Malling Borough Council,10/20/2021,0022025879/1,22025879, 3090.00,Under My Roof Ltd,01806700,,Temporary Accommodation,Homelessness,C01AA000044051,
http://statistics.data.gov.uk/id/local-authority/29UP,Tonbridge & Malling Borough Council,10/20/2021,0022025880/1,22025880, 11447.46,Urbaser LTD,01718800,,Payment re Prev Yrs Cred Acc,Sundry Creditors SSLTS,J80TL000001101,
http://statistics.data.gov.uk/id/local-authority/29UP,Tonbridge & Malling Borough Council,10/20/2021,0022025880/2,22025880, 45.01,Urbaser LTD,01718800,,Payment re Prev Yrs Cred Acc,Sundry Creditors SSLTS,J80TL000001101,
http://statistics.data.gov.uk/id/local-authority/29UP,Tonbridge & Malling Borough Council,10/20/2021,0022025880/3,22025880, 1403.05,Urbaser LTD,01718800,,Payment re Prev Yrs Cred Acc,Sundry Creditors SSLTS,J80TL000001101,
http://statistics.data.gov.uk/id/local-authority/29UP,Tonbridge & Malling Borough Council,10/20/2021,0022025880/4,22025880, 12595.83,Urbaser LTD,01718800,,Payment re Prev Yrs Cred Acc,Sundry Creditors SSLTS,J80TL000001101,
http://statistics.data.gov.uk/id/local-authority/29UP,Tonbridge & Malling Borough Council,10/20/2021,0022025880/5,22025880, 165.87,Urbaser LTD,01718800,,Payment re Prev Yrs Cred Acc,Sundry Creditors SSLTS,J80TL000001101,
http://statistics.data.gov.uk/id/local-authority/29UP,Tonbridge & Malling Borough Council,10/20/2021,0022025881/1,22025881, 12413.55,Urbaser LTD,01718800,,Contract Payments,Refuse Collection,H20SA000054001,
http://statistics.data.gov.uk/id/local-authority/29UP,Tonbridge & Malling Borough Council,10/20/2021,0022025881/2,22025881, 11400.94,Urbaser LTD,01718800,,Contract Payments,Street Scene,H23SD000054001,
http://statistics.data.gov.uk/id/local-authority/29UP,Tonbridge & Malling Borough Council,10/20/2021,0022025881/3,22025881, 1530.27,Urbaser LTD,01718800,,Contract Payments,Dry Recycling,H34SR000054001,
http://statistics.data.gov.uk/id/local-authority/29UP,Tonbridge & Malling Borough Council,10/20/2021,0022025881/4,22025881, 212.77,Urbaser LTD,01718800,,Contract Payments,Food Recycling,H34SS000054001,
http://statistics.data.gov.uk/id/local-authority/29UP,Tonbridge & Malling Borough Council,10/20/2021,0022025881/5,22025881, 11608.32,Urbaser LTD,01718800,,Contract Payments,Garden Waste Recycling,H34ST000054001,
http://statistics.data.gov.uk/id/local-authority/29UP,Tonbridge & Malling Borough Council,10/20/2021,0022025882/1,22025882, 14451.90,Urbaser LTD,01718800,,Contract Payments,Refuse Collection,H20SA000054001,
http://statistics.data.gov.uk/id/local-authority/29UP,Tonbridge & Malling Borough Council,10/20/2021,0022025882/2,22025882, 9378.12,Urbaser LTD,01718800,,Contract Payments,Street Scene,H23SD000054001,
http://statistics.data.gov.uk/id/local-authority/29UP,Tonbridge & Malling Borough Council,10/20/2021,0022025882/3,22025882, 1547.07,Urbaser LTD,01718800,,Contract Payments,Dry Recycling,H34SR000054001,
http://statistics.data.gov.uk/id/local-authority/29UP,Tonbridge & Malling Borough Council,10/20/2021,0022025882/4,22025882, 223.78,Urbaser LTD,01718800,,Contract Payments,Food Recycling,H34SS000054001,
http://statistics.data.gov.uk/id/local-authority/29UP,Tonbridge & Malling Borough Council,10/20/2021,0022025882/5,22025882, 11679.35,Urbaser LTD,01718800,,Contract Payments,Garden Waste Recycling,H34ST000054001,
http://statistics.data.gov.uk/id/local-authority/29UP,Tonbridge & Malling Borough Council,10/20/2021,0022025883/1,22025883, 12717.42,Urbaser LTD,01718800,,Contract Payments,Refuse Collection,H20SA000054001,
http://statistics.data.gov.uk/id/local-authority/29UP,Tonbridge & Malling Borough Council,10/20/2021,0022025883/2,22025883, 8866.16,Urbaser LTD,01718800,,Contract Payments,Street Scene,H23SD000054001,
http://statistics.data.gov.uk/id/local-authority/29UP,Tonbridge & Malling Borough Council,10/20/2021,0022025883/3,22025883, 1617.40,Urbaser LTD,01718800,,Contract Payments,Dry Recycling,H34SR000054001,
http://statistics.data.gov.uk/id/local-authority/29UP,Tonbridge & Malling Borough Council,10/20/2021,0022025883/4,22025883, 238.30,Urbaser LTD,01718800,,Contract Payments,Food Recycling,H34SS000054001,
http://statistics.data.gov.uk/id/local-authority/29UP,Tonbridge & Malling Borough Council,10/20/2021,0022025883/5,22025883, 11659.93,Urbaser LTD,01718800,,Contract Payments,Garden Waste Recycling,H34ST000054001,
http://statistics.data.gov.uk/id/local-authority/29UP,Tonbridge & Malling Borough Council,10/20/2021,0022025884/1,22025884, 36461.34,Urbaser LTD,01718800,,Contract Payments,Refuse Collection,H20SA000054001,
http://statistics.data.gov.uk/id/local-authority/29UP,Tonbridge & Malling Borough Council,10/20/2021,0022025885/1,22025885, 1239.50,Vivid Resourcing,01773700,,Temporary Staff,Env Hlth & Hsg Sals&Overheads,D01AVDV0711300,
http://statistics.data.gov.uk/id/local-authority/29UP,Tonbridge & Malling Borough Council,10/20/2021,0022025886/1,22025886, 526.44,E.ON,01790900,,Electricity,Homelessness,C01AA000021002,
http://statistics.data.gov.uk/id/local-authority/29UP,Tonbridge & Malling Borough Council,10/20/2021,0022025886/2,22025886, 10.00,E.ON,01790900,,Electricity,Homelessness,C01AA000021002,
http://statistics.data.gov.uk/id/local-authority/29UP,Tonbridge & Malling Borough Council,10/20/2021,0022025887/1,22025887, 35729.00,Look Ahead,01746900,,Purchases,Homelessness,C01AA000040101,220003156
http://statistics.data.gov.uk/id/local-authority/29UP,Tonbridge & Malling Borough Council,10/20/2021,0022025888/1,22025888, 1918.35,Ward Security LTD,01490000,,Dog Warden,Street Scene,H23SD000044100,
http://statistics.data.gov.uk/id/local-authority/29UP,Tonbridge & Malling Borough Council,10/20/2021,0022025889/3,22025889, 33925.70,Urbaser LTD,01718800,,Contract Payments,Refuse Collection,H20SA000054001,
http://statistics.data.gov.uk/id/local-authority/29UP,Tonbridge & Malling Borough Council,10/20/2021,0022025889/4,22025889, 2263.68,Urbaser LTD,01718800,,Contract Payments,Street Scene,H23SD000054001,
http://statistics.data.gov.uk/id/local-authority/29UP,Tonbridge & Malling Borough Council,10/20/2021,0022025889/5,22025889, 1431.25,Urbaser LTD,01718800,,Contract Payments,Dry Recycling,H34SR000054001,
http://statistics.data.gov.uk/id/local-authority/29UP,Tonbridge & Malling Borough Council,10/20/2021,0022025889/6,22025889, 159.32,Urbaser LTD,01718800,,Contract Payments,Food Recycling,H34SS000054001,
http://statistics.data.gov.uk/id/local-authority/29UP,Tonbridge & Malling Borough Council,10/20/2021,0022025889/7,22025889, 12537.56,Urbaser LTD,01718800,,Contract Payments,Garden Waste Recycling,H34ST000054001,
http://statistics.data.gov.uk/id/local-authority/29UP,Tonbridge & Malling Borough Council,10/20/2021,0022025890/3,22025890, 14411.49,Urbaser LTD,01718800,,Contract Payments,Refuse Collection,H20SA000054001,
http://statistics.data.gov.uk/id/local-authority/29UP,Tonbridge & Malling Borough Council,10/20/2021,0022025890/4,22025890, 15772.23,Urbaser LTD,01718800,,Contract Payments,Street Scene,H23SD000054001,
http://statistics.data.gov.uk/id/local-authority/29UP,Tonbridge & Malling Borough Council,10/20/2021,0022025890/5,22025890, 1531.23,Urbaser LTD,01718800,,Contract Payments,Dry Recycling,H34SR000054001,
http://statistics.data.gov.uk/id/local-authority/29UP,Tonbridge & Malling Borough Council,10/20/2021,0022025890/6,22025890, 224.11,Urbaser LTD,01718800,,Contract Payments,Food Recycling,H34SS000054001,
http://statistics.data.gov.uk/id/local-authority/29UP,Tonbridge & Malling Borough Council,10/20/2021,0022025890/7,22025890, 12668.66,Urbaser LTD,01718800,,Contract Payments,Garden Waste Recycling,H34ST000054001,
http://statistics.data.gov.uk/id/local-authority/29UP,Tonbridge & Malling Borough Council,10/20/2021,0022025891/11,22025891, 354.43,Urbaser LTD,01718800,,Maintenance of Grounds,Sports Grounds,B13ET000020402,
http://statistics.data.gov.uk/id/local-authority/29UP,Tonbridge & Malling Borough Council,10/20/2021,0022025891/12,22025891, 75.43,Urbaser LTD,01718800,,Maintenance of Grounds,Poult Wood Golf Centre,B21KE000020402,
http://statistics.data.gov.uk/id/local-authority/29UP,Tonbridge & Malling Borough Council,10/20/2021,0022025891/13,22025891, 31.13,Urbaser LTD,01718800,,Maintenance of Grounds,Haysden Country Park,B22LC000020402,
http://statistics.data.gov.uk/id/local-authority/29UP,Tonbridge & Malling Borough Council,10/20/2021,0022025891/14,22025891, 23.91,Urbaser LTD,01718800,,Dog Bin Emptying,Haysden Country Park,B22LC000044012,
http://statistics.data.gov.uk/id/local-authority/29UP,Tonbridge & Malling Borough Council,10/20/2021,0022025891/15,22025891, 677.66,Urbaser LTD,01718800,,Maintenance of Grounds,Open Spaces & Amenity Areas,B22LE000020402,
http://statistics.data.gov.uk/id/local-authority/29UP,Tonbridge & Malling Borough Council,10/20/2021,0022025891/16,22025891, 12.75,Urbaser LTD,01718800,,Dog Bin Emptying,Open Spaces & Amenity Areas,B22LE000044012,
http://statistics.data.gov.uk/id/local-authority/29UP,Tonbridge & Malling Borough Council,10/20/2021,0022025891/17,22025891, 22.00,Urbaser LTD,01718800,,Maintenance of Grounds,Countryside/Woodland Mgt,B22LG000020402,
http://statistics.data.gov.uk/id/local-authority/29UP,Tonbridge & Malling Borough Council,10/20/2021,0022025891/18,22025891, 66.06,Urbaser LTD,01718800,,Maintenance of Grounds,Leybourne Lakes Country Park,B22LK000020402,
http://statistics.data.gov.uk/id/local-authority/29UP,Tonbridge & Malling Borough Council,10/20/2021,0022025891/19,22025891, 23.91,Urbaser LTD,01718800,,Dog Bin Emptying,Leybourne Lakes Country Park,B22LK000044012,
http://statistics.data.gov.uk/id/local-authority/29UP,Tonbridge & Malling Borough Council,10/20/2021,0022025891/20,22025891, 55.10,Urbaser LTD,01718800,,Maintenance of Grounds,Grounds,D21FF000020402,
http://statistics.data.gov.uk/id/local-authority/29UP,Tonbridge & Malling Borough Council,10/20/2021,0022025891/21,22025891, 168.53,Urbaser LTD,01718800,,Maintenance of Grounds,Parking Off-Street,E10HA000020402,
http://statistics.data.gov.uk/id/local-authority/29UP,Tonbridge & Malling Borough Council,10/20/2021,0022025891/22,22025891, 4288.11,Urbaser LTD,01718800,,Maintenance of Grounds,Parking Off-Street,E10HAE00120402,
http://statistics.data.gov.uk/id/local-authority/29UP,Tonbridge & Malling Borough Council,10/20/2021,0022025891/23,22025891, 461.92,Urbaser LTD,01718800,,Maintenance of Grounds,Parking Off-Street,E10HAE00220402,
http://statistics.data.gov.uk/id/local-authority/29UP,Tonbridge & Malling Borough Council,10/20/2021,0022025891/24,22025891, 288.97,Urbaser LTD,01718800,,Maintenance of Grounds,Parking Off-Street,E10HAE00320402,
http://statistics.data.gov.uk/id/local-authority/29UP,Tonbridge & Malling Borough Council,10/20/2021,0022025891/25,22025891, 1511.29,Urbaser LTD,01718800,,Maintenance of Grounds,Parking Off-Street,E10HAE00420402,
http://statistics.data.gov.uk/id/local-authority/29UP,Tonbridge & Malling Borough Council,10/20/2021,0022025891/26,22025891, 251.14,Urbaser LTD,01718800,,Maintenance of Grounds,Parking Off-Street,E10HAE00520402,
http://statistics.data.gov.uk/id/local-authority/29UP,Tonbridge & Malling Borough Council,10/20/2021,0022025891/27,22025891, 936.67,Urbaser LTD,01718800,,Maintenance of Grounds,Parking Off-Street,E10HAE00620402,
http://statistics.data.gov.uk/id/local-authority/29UP,Tonbridge & Malling Borough Council,10/20/2021,0022025891/28,22025891, 7.90,Urbaser LTD,01718800,,Maintenance of Grounds,Parking Off-Street,E10HAE00820402,
http://statistics.data.gov.uk/id/local-authority/29UP,Tonbridge & Malling Borough Council,10/20/2021,0022025891/29,22025891, 7.80,Urbaser LTD,01718800,,Maintenance of Grounds,Parking Off-Street,E10HAE00920402,
http://statistics.data.gov.uk/id/local-authority/29UP,Tonbridge & Malling Borough Council,10/20/2021,0022025891/30,22025891, 18.51,Urbaser LTD,01718800,,Maintenance of Grounds,Parking Off-Street,E10HAE01020402,
http://statistics.data.gov.uk/id/local-authority/29UP,Tonbridge & Malling Borough Council,10/20/2021,0022025891/31,22025891, 87.95,Urbaser LTD,01718800,,Maintenance of Grounds,Parking Off-Street,E10HAE01120402,
http://statistics.data.gov.uk/id/local-authority/29UP,Tonbridge & Malling Borough Council,10/20/2021,0022025891/32,22025891, 55.34,Urbaser LTD,01718800,,Maintenance of Grounds,Parking Off-Street,E10HAE01220402,
http://statistics.data.gov.uk/id/local-authority/29UP,Tonbridge & Malling Borough Council,10/20/2021,0022025891/33,22025891, 1049.30,Urbaser LTD,01718800,,Maintenance of Grounds,Parking Off-Street,E10HAE01320402,
http://statistics.data.gov.uk/id/local-authority/29UP,Tonbridge & Malling Borough Council,10/20/2021,0022025891/34,22025891, 79.80,Urbaser LTD,01718800,,Maintenance of Grounds,Parking Off-Street,E10HAE01420402,
http://statistics.data.gov.uk/id/local-authority/29UP,Tonbridge & Malling Borough Council,10/20/2021,0022025891/35,22025891, 245.93,Urbaser LTD,01718800,,Maintenance of Grounds,Parking Off-Street,E10HAE01520402,
http://statistics.data.gov.uk/id/local-authority/29UP,Tonbridge & Malling Borough Council,10/20/2021,0022025891/36,22025891, 264.50,Urbaser LTD,01718800,,Maintenance of Grounds,Parking Off-Street,E10HAE01620402,
http://statistics.data.gov.uk/id/local-authority/29UP,Tonbridge & Malling Borough Council,10/20/2021,0022025891/37,22025891, 780.85,Urbaser LTD,01718800,,Maintenance of Grounds,Parking Off-Street,E10HAE01720402,
http://statistics.data.gov.uk/id/local-authority/29UP,Tonbridge & Malling Borough Council,10/20/2021,0022025891/38,22025891, 224.12,Urbaser LTD,01718800,,Maintenance of Grounds,Parking Off-Street,E10HAE01920402,
http://statistics.data.gov.uk/id/local-authority/29UP,Tonbridge & Malling Borough Council,10/20/2021,0022025891/39,22025891, 492.32,Urbaser LTD,01718800,,Maintenance of Grounds,Parking Off-Street,E10HAE02020402,
http://statistics.data.gov.uk/id/local-authority/29UP,Tonbridge & Malling Borough Council,10/20/2021,0022025891/40,22025891, 17.09,Urbaser LTD,01718800,,Maintenance of Grounds,Parking Off-Street,E10HAE02120402,
http://statistics.data.gov.uk/id/local-authority/29UP,Tonbridge & Malling Borough Council,10/20/2021,0022025891/41,22025891, 112.54,Urbaser LTD,01718800,,Maintenance of Grounds,Parking Off-Street,E10HAE02220402,
http://statistics.data.gov.uk/id/local-authority/29UP,Tonbridge & Malling Borough Council,10/20/2021,0022025891/42,22025891, 946.10,Urbaser LTD,01718800,,Maintenance of Grounds,Parking Off-Street,E10HAE02320402,
http://statistics.data.gov.uk/id/local-authority/29UP,Tonbridge & Malling Borough Council,10/20/2021,0022025891/43,22025891, 2.44,Urbaser LTD,01718800,,Maintenance of Grounds,Parking Off-Street,E10HAE02720402,
http://statistics.data.gov.uk/id/local-authority/29UP,Tonbridge & Malling Borough Council,10/20/2021,0022025891/44,22025891, 343.77,Urbaser LTD,01718800,,Maintenance of Grounds,Parking Off-Street,E10HAE02820402,
http://statistics.data.gov.uk/id/local-authority/29UP,Tonbridge & Malling Borough Council,10/20/2021,0022025891/45,22025891, 6.19,Urbaser LTD,01718800,,Maintenance of Grounds,Parking Off-Street,E10HAE02920402,
http://statistics.data.gov.uk/id/local-authority/29UP,Tonbridge & Malling Borough Council,10/20/2021,0022025891/46,22025891, 36.43,Urbaser LTD,01718800,,Maintenance of Grounds,Parking Off-Street,E10HAE03020402,
http://statistics.data.gov.uk/id/local-authority/29UP,Tonbridge & Malling Borough Council,10/20/2021,0022025891/47,22025891, 31.00,Urbaser LTD,01718800,,Maintenance of Grounds,Parking Off-Street,E10HAE03120402,
http://statistics.data.gov.uk/id/local-authority/29UP,Tonbridge & Malling Borough Council,10/20/2021,0022025891/48,22025891, 657.32,Urbaser LTD,01718800,,Maintenance of Grounds,Parking Off-Street,E10HAE04020402,
http://statistics.data.gov.uk/id/local-authority/29UP,Tonbridge & Malling Borough Council,10/20/2021,0022025891/49,22025891, 455.90,Urbaser LTD,01718800,,Maintenance of Grounds,Parking Off-Street,E10HAE04220402,
http://statistics.data.gov.uk/id/local-authority/29UP,Tonbridge & Malling Borough Council,10/20/2021,0022025891/50,22025891, 1308.55,Urbaser LTD,01718800,,Maintenance of Grounds,Parking Off-Street,E10HAE04520402,
http://statistics.data.gov.uk/id/local-authority/29UP,Tonbridge & Malling Borough Council,10/20/2021,0022025891/51,22025891, 81773.77,Urbaser LTD,01718800,,Contract Payments,Refuse Collection,H20SA000054001,
http://statistics.data.gov.uk/id/local-authority/29UP,Tonbridge & Malling Borough Council,10/20/2021,0022025891/52,22025891, 865.70,Urbaser LTD,01718800,,Responsible Dog Ownership,Street Scene,H23SD000044050,
http://statistics.data.gov.uk/id/local-authority/29UP,Tonbridge & Malling Borough Council,10/20/2021,0022025891/53,22025891, 51717.72,Urbaser LTD,01718800,,Contract Payments,Street Scene,H23SD000054001,
http://statistics.data.gov.uk/id/local-authority/29UP,Tonbridge & Malling Borough Council,10/20/2021,0022025891/54,22025891, 819.23,Urbaser LTD,01718800,,General Maintenance,Dry Recycling,H34SR000020301,
http://statistics.data.gov.uk/id/local-authority/29UP,Tonbridge & Malling Borough Council,10/20/2021,0022025891/55,22025891, 73613.88,Urbaser LTD,01718800,,Contract Payments,Dry Recycling,H34SR000054001,
http://statistics.data.gov.uk/id/local-authority/29UP,Tonbridge & Malling Borough Council,10/20/2021,0022025891/56,22025891, 3803.64,Urbaser LTD,01718800,,Bring Sites Mixed Recycling,Dry Recycling,H34SR000054026,
http://statistics.data.gov.uk/id/local-authority/29UP,Tonbridge & Malling Borough Council,10/20/2021,0022025891/57,22025891, 28804.34,Urbaser LTD,01718800,,Contract Payments,Food Recycling,H34SS000054001,
http://statistics.data.gov.uk/id/local-authority/29UP,Tonbridge & Malling Borough Council,10/20/2021,0022025891/58,22025891, 16367.16,Urbaser LTD,01718800,,Contract Payments,Garden Waste Recycling,H34ST000054001,
http://statistics.data.gov.uk/id/local-authority/29UP,Tonbridge & Malling Borough Council,10/20/2021,0022025892/10,22025892, 23.91,Urbaser LTD,01718800,,Dog Bin Emptying,Haysden Country Park,B22LC000044012,
http://statistics.data.gov.uk/id/local-authority/29UP,Tonbridge & Malling Borough Council,10/20/2021,0022025892/11,22025892, 677.66,Urbaser LTD,01718800,,Maintenance of Grounds,Open Spaces & Amenity Areas,B22LE000020402,
http://statistics.data.gov.uk/id/local-authority/29UP,Tonbridge & Malling Borough Council,10/20/2021,0022025892/12,22025892, 12.75,Urbaser LTD,01718800,,Dog Bin Emptying,Open Spaces & Amenity Areas,B22LE000044012,
http://statistics.data.gov.uk/id/local-authority/29UP,Tonbridge & Malling Borough Council,10/20/2021,0022025892/13,22025892, 22.00,Urbaser LTD,01718800,,Maintenance of Grounds,Countryside/Woodland Mgt,B22LG000020402,
http://statistics.data.gov.uk/id/local-authority/29UP,Tonbridge & Malling Borough Council,10/20/2021,0022025892/14,22025892, 66.06,Urbaser LTD,01718800,,Maintenance of Grounds,Leybourne Lakes Country Park,B22LK000020402,
http://statistics.data.gov.uk/id/local-authority/29UP,Tonbridge & Malling Borough Council,10/20/2021,0022025892/15,22025892, 23.91,Urbaser LTD,01718800,,Dog Bin Emptying,Leybourne Lakes Country Park,B22LK000044012,
http://statistics.data.gov.uk/id/local-authority/29UP,Tonbridge & Malling Borough Council,10/20/2021,0022025892/16,22025892, 55.10,Urbaser LTD,01718800,,Maintenance of Grounds,Grounds,D21FF000020402,
http://statistics.data.gov.uk/id/local-authority/29UP,Tonbridge & Malling Borough Council,10/20/2021,0022025892/17,22025892, 168.53,Urbaser LTD,01718800,,Maintenance of Grounds,Parking Off-Street,E10HA000020402,
http://statistics.data.gov.uk/id/local-authority/29UP,Tonbridge & Malling Borough Council,10/20/2021,0022025892/18,22025892, 4288.11,Urbaser LTD,01718800,,Maintenance of Grounds,Parking Off-Street,E10HAE00120402,
http://statistics.data.gov.uk/id/local-authority/29UP,Tonbridge & Malling Borough Council,10/20/2021,0022025892/19,22025892, 461.92,Urbaser LTD,01718800,,Maintenance of Grounds,Parking Off-Street,E10HAE00220402,
http://statistics.data.gov.uk/id/local-authority/29UP,Tonbridge & Malling Borough Council,10/20/2021,0022025892/20,22025892, 288.97,Urbaser LTD,01718800,,Maintenance of Grounds,Parking Off-Street,E10HAE00320402,
http://statistics.data.gov.uk/id/local-authority/29UP,Tonbridge & Malling Borough Council,10/20/2021,0022025892/21,22025892, 1511.29,Urbaser LTD,01718800,,Maintenance of Grounds,Parking Off-Street,E10HAE00420402,
http://statistics.data.gov.uk/id/local-authority/29UP,Tonbridge & Malling Borough Council,10/20/2021,0022025892/22,22025892, 251.14,Urbaser LTD,01718800,,Maintenance of Grounds,Parking Off-Street,E10HAE00520402,
http://statistics.data.gov.uk/id/local-authority/29UP,Tonbridge & Malling Borough Council,10/20/2021,0022025892/23,22025892, 936.67,Urbaser LTD,01718800,,Maintenance of Grounds,Parking Off-Street,E10HAE00620402,
http://statistics.data.gov.uk/id/local-authority/29UP,Tonbridge & Malling Borough Council,10/20/2021,0022025892/24,22025892, 7.90,Urbaser LTD,01718800,,Maintenance of Grounds,Parking Off-Street,E10HAE00820402,
http://statistics.data.gov.uk/id/local-authority/29UP,Tonbridge & Malling Borough Council,10/20/2021,0022025892/25,22025892, 7.80,Urbaser LTD,01718800,,Maintenance of Grounds,Parking Off-Street,E10HAE00920402,
http://statistics.data.gov.uk/id/local-authority/29UP,Tonbridge & Malling Borough Council,10/20/2021,0022025892/26,22025892, 18.51,Urbaser LTD,01718800,,Maintenance of Grounds,Parking Off-Street,E10HAE01020402,
http://statistics.data.gov.uk/id/local-authority/29UP,Tonbridge & Malling Borough Council,10/20/2021,0022025892/27,22025892, 87.95,Urbaser LTD,01718800,,Maintenance of Grounds,Parking Off-Street,E10HAE01120402,
http://statistics.data.gov.uk/id/local-authority/29UP,Tonbridge & Malling Borough Council,10/20/2021,0022025892/28,22025892, 55.34,Urbaser LTD,01718800,,Maintenance of Grounds,Parking Off-Street,E10HAE01220402,
http://statistics.data.gov.uk/id/local-authority/29UP,Tonbridge & Malling Borough Council,10/20/2021,0022025892/29,22025892, 1049.30,Urbaser LTD,01718800,,Maintenance of Grounds,Parking Off-Street,E10HAE01320402,
http://statistics.data.gov.uk/id/local-authority/29UP,Tonbridge & Malling Borough Council,10/20/2021,0022025892/30,22025892, 79.80,Urbaser LTD,01718800,,Maintenance of Grounds,Parking Off-Street,E10HAE01420402,
http://statistics.data.gov.uk/id/local-authority/29UP,Tonbridge & Malling Borough Council,10/20/2021,0022025892/31,22025892, 245.93,Urbaser LTD,01718800,,Maintenance of Grounds,Parking Off-Street,E10HAE01520402,
http://statistics.data.gov.uk/id/local-authority/29UP,Tonbridge & Malling Borough Council,10/20/2021,0022025892/32,22025892, 264.50,Urbaser LTD,01718800,,Maintenance of Grounds,Parking Off-Street,E10HAE01620402,
http://statistics.data.gov.uk/id/local-authority/29UP,Tonbridge & Malling Borough Council,10/20/2021,0022025892/33,22025892, 780.85,Urbaser LTD,01718800,,Maintenance of Grounds,Parking Off-Street,E10HAE01720402,
http://statistics.data.gov.uk/id/local-authority/29UP,Tonbridge & Malling Borough Council,10/20/2021,0022025892/34,22025892, 224.12,Urbaser LTD,01718800,,Maintenance of Grounds,Parking Off-Street,E10HAE01920402,
http://statistics.data.gov.uk/id/local-authority/29UP,Tonbridge & Malling Borough Council,10/20/2021,0022025892/35,22025892, 492.32,Urbaser LTD,01718800,,Maintenance of Grounds,Parking Off-Street,E10HAE02020402,
http://statistics.data.gov.uk/id/local-authority/29UP,Tonbridge & Malling Borough Council,10/20/2021,0022025892/36,22025892, 17.09,Urbaser LTD,01718800,,Maintenance of Grounds,Parking Off-Street,E10HAE02120402,
http://statistics.data.gov.uk/id/local-authority/29UP,Tonbridge & Malling Borough Council,10/20/2021,0022025892/37,22025892, 112.54,Urbaser LTD,01718800,,Maintenance of Grounds,Parking Off-Street,E10HAE02220402,
http://statistics.data.gov.uk/id/local-authority/29UP,Tonbridge & Malling Borough Council,10/20/2021,0022025892/38,22025892, 946.10,Urbaser LTD,01718800,,Maintenance of Grounds,Parking Off-Street,E10HAE02320402,
http://statistics.data.gov.uk/id/local-authority/29UP,Tonbridge & Malling Borough Council,10/20/2021,0022025892/39,22025892, 2.44,Urbaser LTD,01718800,,Maintenance of Grounds,Parking Off-Street,E10HAE02720402,
http://statistics.data.gov.uk/id/local-authority/29UP,Tonbridge & Malling Borough Council,10/20/2021,0022025892/40,22025892, 343.77,Urbaser LTD,01718800,,Maintenance of Grounds,Parking Off-Street,E10HAE02820402,
http://statistics.data.gov.uk/id/local-authority/29UP,Tonbridge & Malling Borough Council,10/20/2021,0022025892/41,22025892, 6.19,Urbaser LTD,01718800,,Maintenance of Grounds,Parking Off-Street,E10HAE02920402,
http://statistics.data.gov.uk/id/local-authority/29UP,Tonbridge & Malling Borough Council,10/20/2021,0022025892/42,22025892, 36.43,Urbaser LTD,01718800,,Maintenance of Grounds,Parking Off-Street,E10HAE03020402,
http://statistics.data.gov.uk/id/local-authority/29UP,Tonbridge & Malling Borough Council,10/20/2021,0022025892/43,22025892, 31.00,Urbaser LTD,01718800,,Maintenance of Grounds,Parking Off-Street,E10HAE03120402,
http://statistics.data.gov.uk/id/local-authority/29UP,Tonbridge & Malling Borough Council,10/20/2021,0022025892/44,22025892, 657.32,Urbaser LTD,01718800,,Maintenance of Grounds,Parking Off-Street,E10HAE04020402,
http://statistics.data.gov.uk/id/local-authority/29UP,Tonbridge & Malling Borough Council,10/20/2021,0022025892/45,22025892, 455.90,Urbaser LTD,01718800,,Maintenance of Grounds,Parking Off-Street,E10HAE04220402,
http://statistics.data.gov.uk/id/local-authority/29UP,Tonbridge & Malling Borough Council,10/20/2021,0022025892/46,22025892, 1308.55,Urbaser LTD,01718800,,Maintenance of Grounds,Parking Off-Street,E10HAE04520402,
http://statistics.data.gov.uk/id/local-authority/29UP,Tonbridge & Malling Borough Council,10/20/2021,0022025892/47,22025892, 81773.77,Urbaser LTD,01718800,,Contract Payments,Refuse Collection,H20SA000054001,
http://statistics.data.gov.uk/id/local-authority/29UP,Tonbridge & Malling Borough Council,10/20/2021,0022025892/48,22025892, 865.70,Urbaser LTD,01718800,,Responsible Dog Ownership,Street Scene,H23SD000044050,
http://statistics.data.gov.uk/id/local-authority/29UP,Tonbridge & Malling Borough Council,10/20/2021,0022025892/49,22025892, 51717.72,Urbaser LTD,01718800,,Contract Payments,Street Scene,H23SD000054001,
http://statistics.data.gov.uk/id/local-authority/29UP,Tonbridge & Malling Borough Council,10/20/2021,0022025892/50,22025892, 819.23,Urbaser LTD,01718800,,General Maintenance,Dry Recycling,H34SR000020301,
http://statistics.data.gov.uk/id/local-authority/29UP,Tonbridge & Malling Borough Council,10/20/2021,0022025892/51,22025892, 73613.88,Urbaser LTD,01718800,,Contract Payments,Dry Recycling,H34SR000054001,
http://statistics.data.gov.uk/id/local-authority/29UP,Tonbridge & Malling Borough Council,10/20/2021,0022025892/52,22025892, 3803.64,Urbaser LTD,01718800,,Bring Sites Mixed Recycling,Dry Recycling,H34SR000054026,
http://statistics.data.gov.uk/id/local-authority/29UP,Tonbridge & Malling Borough Council,10/20/2021,0022025892/53,22025892, 28804.34,Urbaser LTD,01718800,,Contract Payments,Food Recycling,H34SS000054001,
http://statistics.data.gov.uk/id/local-authority/29UP,Tonbridge & Malling Borough Council,10/20/2021,0022025892/54,22025892, 16367.16,Urbaser LTD,01718800,,Contract Payments,Garden Waste Recycling,H34ST000054001,
http://statistics.data.gov.uk/id/local-authority/29UP,Tonbridge & Malling Borough Council,10/20/2021,0022025892/7,22025892, 354.43,Urbaser LTD,01718800,,Maintenance of Grounds,Sports Grounds,B13ET000020402,
http://statistics.data.gov.uk/id/local-authority/29UP,Tonbridge & Malling Borough Council,10/20/2021,0022025892/8,22025892, 75.43,Urbaser LTD,01718800,,Maintenance of Grounds,Poult Wood Golf Centre,B21KE000020402,
http://statistics.data.gov.uk/id/local-authority/29UP,Tonbridge & Malling Borough Council,10/20/2021,0022025892/9,22025892, 31.13,Urbaser LTD,01718800,,Maintenance of Grounds,Haysden Country Park,B22LC000020402,
http://statistics.data.gov.uk/id/local-authority/29UP,Tonbridge & Malling Borough Council,10/20/2021,0022025893/1,22025893, 15000.00,Kent County Council,01244700,,Kent Resource Partnership,Dry Recycling,H34SR000048143,220003159
http://statistics.data.gov.uk/id/local-authority/29UP,Tonbridge & Malling Borough Council,10/20/2021,0031018228/1,31018228, 675.00,Archway Highway Services Ltd,01398000,,Premises Repairs & Maintenance,Parking On-Street,E10HD000020601,310042713
http://statistics.data.gov.uk/id/local-authority/29UP,Tonbridge & Malling Borough Council,10/20/2021,0031018228/2,31018228, 120.00,Archway Highway Services Ltd,01398000,,Premises Repairs & Maintenance,Parking On-Street,E10HD000020601,310042713
http://statistics.data.gov.uk/id/local-authority/29UP,Tonbridge & Malling Borough Council,10/20/2021,0031018229/3,31018229, 131.40,Imperial Civil Enforcement Solutions,00057200,,Adjudication & Enforcement Ser,Parking Off-Street,E10HA000044230,
http://statistics.data.gov.uk/id/local-authority/29UP,Tonbridge & Malling Borough Council,10/20/2021,0031018230/1,31018230, 30.78,KelticLimited,01000400,,Uniforms,Parking Off-Street,E10HA000042002,310042712
http://statistics.data.gov.uk/id/local-authority/29UP,Tonbridge & Malling Borough Council,10/20/2021,0031018230/10,31018230, 5.97,KelticLimited,01000400,,Uniforms,Parking On-Street,E10HD000042002,310042712
http://statistics.data.gov.uk/id/local-authority/29UP,Tonbridge & Malling Borough Council,10/20/2021,0031018230/11,31018230, 22.74,KelticLimited,01000400,,Uniforms,Parking On-Street,E10HD000042002,310042712
http://statistics.data.gov.uk/id/local-authority/29UP,Tonbridge & Malling Borough Council,10/20/2021,0031018230/12,31018230, 35.37,KelticLimited,01000400,,Uniforms,Parking On-Street,E10HD000042002,310042712
http://statistics.data.gov.uk/id/local-authority/29UP,Tonbridge & Malling Borough Council,10/20/2021,0031018230/13,31018230, 31.92,KelticLimited,01000400,,Uniforms,Parking On-Street,E10HD000042002,310042712
http://statistics.data.gov.uk/id/local-authority/29UP,Tonbridge & Malling Borough Council,10/20/2021,0031018230/14,31018230, 46.17,KelticLimited,01000400,,Uniforms,Parking On-Street,E10HD000042002,310042712
http://statistics.data.gov.uk/id/local-authority/29UP,Tonbridge & Malling Borough Council,10/20/2021,0031018230/2,31018230, 7.98,KelticLimited,01000400,,Uniforms,Parking Off-Street,E10HA000042002,310042712
http://statistics.data.gov.uk/id/local-authority/29UP,Tonbridge & Malling Borough Council,10/20/2021,0031018230/3,31018230, 23.58,KelticLimited,01000400,,Uniforms,Parking Off-Street,E10HA000042002,310042712
http://statistics.data.gov.uk/id/local-authority/29UP,Tonbridge & Malling Borough Council,10/20/2021,0031018230/4,31018230, 15.16,KelticLimited,01000400,,Uniforms,Parking Off-Street,E10HA000042002,310042712
http://statistics.data.gov.uk/id/local-authority/29UP,Tonbridge & Malling Borough Council,10/20/2021,0031018230/5,31018230, 3.98,KelticLimited,01000400,,Uniforms,Parking Off-Street,E10HA000042002,310042712
http://statistics.data.gov.uk/id/local-authority/29UP,Tonbridge & Malling Borough Council,10/20/2021,0031018230/6,31018230, 22.24,KelticLimited,01000400,,Uniforms,Parking Off-Street,E10HA000042002,310042712
http://statistics.data.gov.uk/id/local-authority/29UP,Tonbridge & Malling Borough Council,10/20/2021,0031018230/7,31018230, 15.90,KelticLimited,01000400,,Uniforms,Parking Off-Street,E10HA000042002,310042712
http://statistics.data.gov.uk/id/local-authority/29UP,Tonbridge & Malling Borough Council,10/20/2021,0031018230/8,31018230, 23.85,KelticLimited,01000400,,Uniforms,Parking On-Street,E10HD000042002,310042712
http://statistics.data.gov.uk/id/local-authority/29UP,Tonbridge & Malling Borough Council,10/20/2021,0031018230/9,31018230, 33.36,KelticLimited,01000400,,Uniforms,Parking On-Street,E10HD000042002,310042712
http://statistics.data.gov.uk/id/local-authority/29UP,Tonbridge & Malling Borough Council,10/20/2021,0031018232/1,31018232, 70.74,KelticLimited,01000400,,Uniforms,Parking Off-Street,E10HA000042002,310042735
http://statistics.data.gov.uk/id/local-authority/29UP,Tonbridge & Malling Borough Council,10/20/2021,0031018232/2,31018232, 4.74,KelticLimited,01000400,,Uniforms,Parking Off-Street,E10HA000042002,310042735
http://statistics.data.gov.uk/id/local-authority/29UP,Tonbridge & Malling Borough Council,10/20/2021,0031018232/3,31018232, 3.98,KelticLimited,01000400,,Uniforms,Parking Off-Street,E10HA000042002,310042735
http://statistics.data.gov.uk/id/local-authority/29UP,Tonbridge & Malling Borough Council,10/20/2021,0031018232/4,31018232, 3.60,KelticLimited,01000400,,Uniforms,Parking Off-Street,E10HA000042002,310042735
http://statistics.data.gov.uk/id/local-authority/29UP,Tonbridge & Malling Borough Council,10/20/2021,0031018232/5,31018232, 7.11,KelticLimited,01000400,,Uniforms,Parking On-Street,E10HD000042002,310042735
http://statistics.data.gov.uk/id/local-authority/29UP,Tonbridge & Malling Borough Council,10/20/2021,0031018232/6,31018232, 5.40,KelticLimited,01000400,,Uniforms,Parking On-Street,E10HD000042002,310042735
http://statistics.data.gov.uk/id/local-authority/29UP,Tonbridge & Malling Borough Council,10/20/2021,0031018232/7,31018232, 5.97,KelticLimited,01000400,,Uniforms,Parking On-Street,E10HD000042002,310042735
http://statistics.data.gov.uk/id/local-authority/29UP,Tonbridge & Malling Borough Council,10/20/2021,0031018232/8,31018232, 106.11,KelticLimited,01000400,,Uniforms,Parking On-Street,E10HD000042002,310042735
http://statistics.data.gov.uk/id/local-authority/29UP,Tonbridge & Malling Borough Council,10/20/2021,0031018237/1,31018237, 150.00,Ryarsh Village Hall,01732500,,Other Expenses,Civil Contingencies,D33NA000048010,
http://statistics.data.gov.uk/id/local-authority/29UP,Tonbridge & Malling Borough Council,10/20/2021,0032009273/1,32009273, 67.50,KCS,00054200,,Stationery,Planning Sals&Overheads,D01AJDJ0143003,310042736
http://statistics.data.gov.uk/id/local-authority/29UP,Tonbridge & Malling Borough Council,10/20/2021,0032009274/1,32009274, 208.20,KM Media Group Ltd,00053900,,Advertising General,Development Management,A01ABZ99944216,320003344
http://statistics.data.gov.uk/id/local-authority/29UP,Tonbridge & Malling Borough Council,10/20/2021,0032009275/1,32009275, 450.00,Charles & Associates,01739200,,Application & Appeals,Development Management,A01AB000044194,320003335
http://statistics.data.gov.uk/id/local-authority/29UP,Tonbridge & Malling Borough Council,10/20/2021,0032009276/1,32009276, 1320.00,G2 Recruitment Solutions,01786000,,Temporary Staff,Planning Sals&Overheads,D01AJDJ0111300,320003308
http://statistics.data.gov.uk/id/local-authority/29UP,Tonbridge & Malling Borough Council,10/20/2021,0032009277/1,32009277, 540.45,G2 Recruitment Solutions,01786000,,Temporary Staff,Planning Sals&Overheads,D01AJDJ0111300,320003308
http://statistics.data.gov.uk/id/local-authority/29UP,Tonbridge & Malling Borough Council,10/20/2021,0032009278/3,32009278, 1480.00,The Oyster Partnership,01196400,,Temporary Staff,Planning Sals&Overheads,D01AJDJ0111300,
http://statistics.data.gov.uk/id/local-authority/29UP,Tonbridge & Malling Borough Council,10/20/2021,0032009279/3,32009279, 1480.00,The Oyster Partnership,01196400,,Temporary Staff,Planning Sals&Overheads,D01AJDJ0111300,
http://statistics.data.gov.uk/id/local-authority/29UP,Tonbridge & Malling Borough Council,10/20/2021,0041033550/3,41033550, 610.50,KH Recruitment Ltd,01738900,,Temporary Staff,Finance Sals&Overheads,D01AFDF1111300,
http://statistics.data.gov.uk/id/local-authority/29UP,Tonbridge & Malling Borough Council,10/20/2021,0041033551/3,41033551, 925.00,Morgan Hunt UK Ltd,01086900,,Temporary Staff,Finance Sals&Overheads,D01AFDF1111300,
http://statistics.data.gov.uk/id/local-authority/29UP,Tonbridge & Malling Borough Council,10/20/2021,0041033552/3,41033552, 980.50,Morgan Hunt UK Ltd,01086900,,Temporary Staff,Finance Sals&Overheads,D01AFDF1111300,
http://statistics.data.gov.uk/id/local-authority/29UP,Tonbridge & Malling Borough Council,10/20/2021,0041033553/3,41033553, 507.00,Morgan Hunt UK Ltd,01086900,,Temporary Staff,Finance Sals&Overheads,D01AFDF1111300,
http://statistics.data.gov.uk/id/local-authority/29UP,Tonbridge & Malling Borough Council,10/20/2021,0041033554/1,41033554, 20.82,Amazon EU SARL,01738400,,Purchases,Finance Sals&Overheads,D01AFDF1140101,410032063
http://statistics.data.gov.uk/id/local-authority/29UP,Tonbridge & Malling Borough Council,10/20/2021,0041033555/1,41033555, 3.94,Amazon EU SARL,01738400,,Purchases,Finance Sals&Overheads,D01AFDF1140101,410032063
http://statistics.data.gov.uk/id/local-authority/29UP,Tonbridge & Malling Borough Council,10/20/2021,0041033566/3,41033566, 584.26,Rundle & Co Ltd,00087200,,Bailiffs Commission,Local Revenue & NNDR Collect,D41QA000044075,
http://statistics.data.gov.uk/id/local-authority/29UP,Tonbridge & Malling Borough Council,10/20/2021,0041033571/1,41033571, 131.33,Utax UK Ltd,01658500,642302771,Leasing Charges,Multi Function Devices,D22GB000044038,
http://statistics.data.gov.uk/id/local-authority/29UP,Tonbridge & Malling Borough Council,10/20/2021,0041033572/1,41033572, 15.00,WorldPay ,01568000,,Credit Card Commission,Banking Arrangements,D43QK000044082,
http://statistics.data.gov.uk/id/local-authority/29UP,Tonbridge & Malling Borough Council,10/20/2021,0041033573/1,41033573, 187.06,WorldPay ,01568000,,Credit Card Commission,Banking Arrangements,D43QK000044082,
http://statistics.data.gov.uk/id/local-authority/29UP,Tonbridge & Malling Borough Council,10/20/2021,0041033574/1,41033574, 873.24,WorldPay ,01568000,,Credit Card Commission,Banking Arrangements,D43QK000044082,
http://statistics.data.gov.uk/id/local-authority/29UP,Tonbridge & Malling Borough Council,10/20/2021,0041033575/1,41033575, 2074.12,WorldPay ,01568000,,Credit Card Commission,Banking Arrangements,D43QK000044082,
http://statistics.data.gov.uk/id/local-authority/29UP,Tonbridge & Malling Borough Council,10/20/2021,0041033575/2,41033575, 197.01,WorldPay ,01568000,,Credit Card Commission,Banking Arrangements,D43QK000044082,
http://statistics.data.gov.uk/id/local-authority/29UP,Tonbridge & Malling Borough Council,10/20/2021,0051008607/1,51008607, 250.00,Medway Council,00934700,,Ext Fees/Prof & Tech,Training,D10DCDR0413561,510010506
http://statistics.data.gov.uk/id/local-authority/29UP,Tonbridge & Malling Borough Council,10/20/2021,0051008608/1,51008608, 145.00,RH Environmental Ltd RH Global,01221000,,Ext Fees/Prof & Tech,Training,D10DCDV0913561,510010520
http://statistics.data.gov.uk/id/local-authority/29UP,Tonbridge & Malling Borough Council,10/21/2021,0041033579/1,41033579, 295.00,National Westminster Bank Plc,00069400,,Bank Charges,Banking Arrangements,D43QK000044222,
http://statistics.data.gov.uk/id/local-authority/29UP,Tonbridge & Malling Borough Council,10/22/2021,0041033586/1,41033586, 2284.00,H.M. Revenue & Customs,00048400,,Levy Payment,Apprenticeship Scheme,D10DE000013700,
http://statistics.data.gov.uk/id/local-authority/29UP,Tonbridge & Malling Borough Council,10/22/2021,0041033587/1,41033587, 68.00,National Westminster Bank Plc,00069400,,Direct Debit / Bank Charges,Local Revenue & NNDR Collect,D41QA000044079,
http://statistics.data.gov.uk/id/local-authority/29UP,Tonbridge & Malling Borough Council,10/22/2021,0041033588/1,41033588, 200.86,National Westminster Bank Plc,00069400,,Direct Debit / Bank Charges,Local Revenue & NNDR Collect,D41QA000044079,
http://statistics.data.gov.uk/id/local-authority/29UP,Tonbridge & Malling Borough Council,10/22/2021,0041033590/1,41033590, 36.00,YESpay International Limited,01068000,991280207,Contract Services,Banking Arrangements,D43QK000044005,
http://statistics.data.gov.uk/id/local-authority/29UP,Tonbridge & Malling Borough Council,10/27/2021,0011043348/1,11043348, 1086.80,Chillmech Limited,00978700,,Initial Furniture & Equipment,Capital Renewals Leisure,P05KGBC0309906,110068802
http://statistics.data.gov.uk/id/local-authority/29UP,Tonbridge & Malling Borough Council,10/27/2021,0011043349/1,11043349, 6340.00,Willow Pumps Ltd,00114100,,BRREP Servicing - Pumping Stn,Ton Sportsgrnd Bldgs / Toilets,M15HCP20001931,110069196
http://statistics.data.gov.uk/id/local-authority/29UP,Tonbridge & Malling Borough Council,10/27/2021,0011043350/1,11043350, 158.00,BML Building Services Ltd,01505000,,BRREP Gatehouse devegetation,Tonbridge Castle Gatehouse,M15HKP20001966,110069198
http://statistics.data.gov.uk/id/local-authority/29UP,Tonbridge & Malling Borough Council,10/27/2021,0011043351/1,11043351, 792.00,BML Building Services Ltd,01505000,,BRREP Response - General,Tonbridge Castle Gatehouse,M15HKP50001997,110069198
http://statistics.data.gov.uk/id/local-authority/29UP,Tonbridge & Malling Borough Council,10/27/2021,0011043352/1,11043352, 225.00,Lemon Drainage Services LTD,01761600,,BRREP Servicing - Pumping Stn,Pleasure Grounds & Open Spaces,M15HHP20001931,110068979
http://statistics.data.gov.uk/id/local-authority/29UP,Tonbridge & Malling Borough Council,10/27/2021,0011043353/1,11043353, 1810.00,G C Industrial Heating Services,00578100,,BRREP Response - General,Angel Centre,M15HAP50001997,110069229
http://statistics.data.gov.uk/id/local-authority/29UP,Tonbridge & Malling Borough Council,10/27/2021,0011043354/1,11043354, 1248.00,BML Building Services Ltd,01505000,,BRREP Response - General,Ton Sportsgrnd Bldgs / Toilets,M15HCP50001997,110069231
http://statistics.data.gov.uk/id/local-authority/29UP,Tonbridge & Malling Borough Council,10/27/2021,0011043355/1,11043355, 104.00,BML Building Services Ltd,01505000,,BRREP External decoration,PC - General,M15JAP20001921,110069254
http://statistics.data.gov.uk/id/local-authority/29UP,Tonbridge & Malling Borough Council,10/27/2021,0011043356/1,11043356, 2000.00,Green Oak Services,01635000,,BRREP Pruning/hedge trimming,Gibson Building West,M15KBP20001973,110069191
http://statistics.data.gov.uk/id/local-authority/29UP,Tonbridge & Malling Borough Council,10/27/2021,0011043357/1,11043357, 1050.00,Marine And Industrial Pump Services,00062800,,BRREP Plant renewals,Larkfield Leisure Centre,M15HDP20001909,110069264
http://statistics.data.gov.uk/id/local-authority/29UP,Tonbridge & Malling Borough Council,10/27/2021,0011043359/1,11043359, 127.20,Biffa Waste Services Ltd,01284500,,Trade Refuse Charges,Cleaning & Security,D21FD000044008,
http://statistics.data.gov.uk/id/local-authority/29UP,Tonbridge & Malling Borough Council,10/27/2021,0011043360/1,11043360, 268.00,Biffa Waste Services Ltd,01284500,,Trade Refuse Charges,Cleaning & Security,D21FD000044008,
http://statistics.data.gov.uk/id/local-authority/29UP,Tonbridge & Malling Borough Council,10/27/2021,0011043361/1,11043361, 37.16,Biffa Waste Services Ltd,01284500,,Trade Refuse Charges,Cleaning & Security,D21FD000044008,
http://statistics.data.gov.uk/id/local-authority/29UP,Tonbridge & Malling Borough Council,10/27/2021,0011043362/1,11043362, 64.96,Biffa Waste Services Ltd,01284500,,Trade Refuse Charges,Cleaning & Security,D21FD000044008,
http://statistics.data.gov.uk/id/local-authority/29UP,Tonbridge & Malling Borough Council,10/27/2021,0011043363/1,11043363, 37.16,Biffa Waste Services Ltd,01284500,,Trade Refuse Charges,Cleaning & Security,D21FD000044008,
http://statistics.data.gov.uk/id/local-authority/29UP,Tonbridge & Malling Borough Council,10/27/2021,0011043364/1,11043364, 174.20,Biffa Waste Services Ltd,01284500,,Trade Refuse Charges,Cleaning & Security,D21FD000044008,
http://statistics.data.gov.uk/id/local-authority/29UP,Tonbridge & Malling Borough Council,10/27/2021,0011043365/1,11043365, 344.83,Initial Washroom Hygiene,00048300,,Laundry - Roller Towels,Cleaning & Security,D21FD000042003,
http://statistics.data.gov.uk/id/local-authority/29UP,Tonbridge & Malling Borough Council,10/27/2021,0011043366/1,11043366, 487.27,KCS,00054200,,Gas,Buildings,D21FEDD1021003,
http://statistics.data.gov.uk/id/local-authority/29UP,Tonbridge & Malling Borough Council,10/27/2021,0011043367/1,11043367, 284.37,KCS,00054200,,Gas,Buildings,D21FEDD6021003,
http://statistics.data.gov.uk/id/local-authority/29UP,Tonbridge & Malling Borough Council,10/27/2021,0011043368/1,11043368, 78.44,Atlas Facilities Managment Limited ,01075900,,Miscellaneous Services,Cleaning & Security,D21FDDD1044015,
http://statistics.data.gov.uk/id/local-authority/29UP,Tonbridge & Malling Borough Council,10/27/2021,0011043369/1,11043369, 170.00,G C Industrial Heating Services,00578100,,BRREP Servicing - Heating Syst,Gibson Building East,M15KGP20001934,
http://statistics.data.gov.uk/id/local-authority/29UP,Tonbridge & Malling Borough Council,10/27/2021,0011043370/1,11043370, 308.00,BML Building Services Ltd,01505000,,BRREP Window/door repairs,Tonbridge Castle / CAB,M15KFP20001919,
http://statistics.data.gov.uk/id/local-authority/29UP,Tonbridge & Malling Borough Council,10/27/2021,0011043372/1,11043372, 60.00,The Mayor's Charity Fund,01297900,,Hospitality,Mayoral & Other Member Support,D29LX000048003,
http://statistics.data.gov.uk/id/local-authority/29UP,Tonbridge & Malling Borough Council,10/27/2021,0011043373/1,11043373, 194.43,Chubb Fire & Security Ltd,00115400,174605362,BRREP Servicing-IntruderAlarm,Tonbridge Swimming Pool,M15HBP20001939,
http://statistics.data.gov.uk/id/local-authority/29UP,Tonbridge & Malling Borough Council,10/27/2021,0011043374/1,11043374, 423.73,Scottish Water Business Stream Ltd,01641100,,Estate Management Charge,Land Review,D40PS000020400,
http://statistics.data.gov.uk/id/local-authority/29UP,Tonbridge & Malling Borough Council,10/27/2021,0011043375/1,11043375, 1042.78,Castle Water,01696500,,Estate Management Charge,Land Review,D40PS000020400,
http://statistics.data.gov.uk/id/local-authority/29UP,Tonbridge & Malling Borough Council,10/27/2021,0011043376/1,11043376, 148.50,Association Democratic Services Officers,01472800,,Professional Membership,Admin & Prop Sals&Overheads,D01AADA0347001,
http://statistics.data.gov.uk/id/local-authority/29UP,Tonbridge & Malling Borough Council,10/27/2021,0011043377/1,11043377, 1000.00,Disclosure & Barring Service,00865900,,Professional Fees,Licences - Fee Paying,H27SH000044001,
http://statistics.data.gov.uk/id/local-authority/29UP,Tonbridge & Malling Borough Council,10/27/2021,0011043378/1,11043378, 200.00,The Bradley Group Ltd,01671800,,BRREP Fire Safety Risk Assess,Leis Man Poult Wood Golf Centr,M15HEP30001999,110069130
http://statistics.data.gov.uk/id/local-authority/29UP,Tonbridge & Malling Borough Council,10/27/2021,0011043378/2,11043378, 200.00,The Bradley Group Ltd,01671800,,BRREP Fire Safety Risk Assess,Tonbridge Farm Pavillion,M15HGP30001999,110069130
http://statistics.data.gov.uk/id/local-authority/29UP,Tonbridge & Malling Borough Council,10/27/2021,0011043378/3,11043378, 528.80,The Bradley Group Ltd,01671800,,BRREP Fire Safety Risk Assess,Gibson Building West,M15KBP30001999,110069130
http://statistics.data.gov.uk/id/local-authority/29UP,Tonbridge & Malling Borough Council,10/27/2021,0011043378/4,11043378, 400.00,The Bradley Group Ltd,01671800,,BRREP Fire Safety Risk Assess,Tonbridge Castle / CAB,M15KFP30001999,110069130
http://statistics.data.gov.uk/id/local-authority/29UP,Tonbridge & Malling Borough Council,10/27/2021,0011043378/5,11043378, 500.00,The Bradley Group Ltd,01671800,,BRREP Fire Safety Risk Assess,Gibson Building East,M15KGP30001999,110069130
http://statistics.data.gov.uk/id/local-authority/29UP,Tonbridge & Malling Borough Council,10/27/2021,0011043379/1,11043379, 663.50,Arnold & Court Ltd,01411300,,BRREP Response - General,Tonbridge Castle / CAB,M15KFP50001997,110069204
http://statistics.data.gov.uk/id/local-authority/29UP,Tonbridge & Malling Borough Council,10/27/2021,0011043379/2,11043379, 663.50,Arnold & Court Ltd,01411300,,BRREP Response - General,Gibson Building East,M15KGP50001997,110069204
http://statistics.data.gov.uk/id/local-authority/29UP,Tonbridge & Malling Borough Council,10/27/2021,0011043380/1,11043380, 961.15,Plaxtol Village Stores,01692800,,H&CG Fund Council Specific,Eco Dev & Reg Gen Bus Support,D52TD000047027,
http://statistics.data.gov.uk/id/local-authority/29UP,Tonbridge & Malling Borough Council,10/27/2021,0011043381/3,11043381, 1113.00,Spy Alarms Ltd,01608800,,BRREP Servicing-IntruderAlarm,Gibson Building East,M15KGP20001939,
http://statistics.data.gov.uk/id/local-authority/29UP,Tonbridge & Malling Borough Council,10/27/2021,0011043382/3,11043382, 125.00,A One Event Services,01776600,,Re-opening High Streets,Eco Dev & Reg Gen Bus Support,D52TDCV1948076,
http://statistics.data.gov.uk/id/local-authority/29UP,Tonbridge & Malling Borough Council,10/27/2021,0011043384/3,11043384, 840.00,Venn Group Ltd,00914300,,Temporary Staff,Legal Sals&Overheads,D01ARDR0011300,
http://statistics.data.gov.uk/id/local-authority/29UP,Tonbridge & Malling Borough Council,10/27/2021,0011043385/3,11043385, 3200.00,Thomson Snell & Passmore,00101700,,Legal Fees,Legal Sals&Overheads,D01ARDR0044002,
http://statistics.data.gov.uk/id/local-authority/29UP,Tonbridge & Malling Borough Council,10/27/2021,0011043386/1,11043386, 1011.61,Broadwater Technologies,01534500,,BRREP Servicing - pool plant,Tonbridge Swimming Pool,M15HBP20001910,110069257
http://statistics.data.gov.uk/id/local-authority/29UP,Tonbridge & Malling Borough Council,10/27/2021,0011043387/3,11043387, 620.00,G C Industrial Heating Services,00578100,,BRREP Servicing - boilers,Tonbridge Farm Pavillion,M15HGP20001929,
http://statistics.data.gov.uk/id/local-authority/29UP,Tonbridge & Malling Borough Council,10/27/2021,0011043388/3,11043388, 1650.00,KH Recruitment Ltd,01738900,,Temporary Staff,Admin & Prop Sals&Overheads,D01AADA1211300,
http://statistics.data.gov.uk/id/local-authority/29UP,Tonbridge & Malling Borough Council,10/27/2021,0012008152/3,12008152, 5000.00,Tunbridge Wells Borough Council,00844600,,Subscriptions,Information Technology,D27KD000047002,
http://statistics.data.gov.uk/id/local-authority/29UP,Tonbridge & Malling Borough Council,10/27/2021,0012008153/1,12008153, 31.00,Seaward Electronic Ltd,01234000,,Maintenance - Ancillary Equip,Information Technology,D27KD000040137,410032072
http://statistics.data.gov.uk/id/local-authority/29UP,Tonbridge & Malling Borough Council,10/27/2021,0012008153/2,12008153, 8.50,Seaward Electronic Ltd,01234000,,Delivery Expenses,Information Technology,D27KD000044069,410032072
http://statistics.data.gov.uk/id/local-authority/29UP,Tonbridge & Malling Borough Council,10/27/2021,0012008154/1,12008154, 3204.65,Vanquish Tech,01798700,,Purchases,Information Technology,D27KD000040101,410032073
http://statistics.data.gov.uk/id/local-authority/29UP,Tonbridge & Malling Borough Council,10/27/2021,0012008154/2,12008154, 538.75,Vanquish Tech,01798700,,Maintenance - Micros,Information Technology,D27KD000040140,410032073
http://statistics.data.gov.uk/id/local-authority/29UP,Tonbridge & Malling Borough Council,10/27/2021,0012008155/1,12008155, 4750.00,Phoenix Software Ltd,00077400,755349015,Consultancy Fees,Information Technology,D27KD000044011,410032045
http://statistics.data.gov.uk/id/local-authority/29UP,Tonbridge & Malling Borough Council,10/27/2021,0021037536/1,21037536, 1859.50,Amethyst Horticulture,01546900,,Maintenance of Grounds,Tonbridge Castle Grounds,B22LB000020402,210056384
http://statistics.data.gov.uk/id/local-authority/29UP,Tonbridge & Malling Borough Council,10/27/2021,0021037537/1,21037537, 137.90,Landscape Services Ltd,00057600,,Maintenance of Grounds,Open Spaces & Amenity Areas,B22LE000020402,210056539
http://statistics.data.gov.uk/id/local-authority/29UP,Tonbridge & Malling Borough Council,10/27/2021,0021037537/2,21037537, 45.40,Landscape Services Ltd,00057600,,Maintenance of Grounds,Open Spaces & Amenity Areas,B22LE000020402,210056539
http://statistics.data.gov.uk/id/local-authority/29UP,Tonbridge & Malling Borough Council,10/27/2021,0022025895/1,22025895, 36.32,Maidstone Borough Council,01173700,,Temporary Accommodation,Homelessness,C01AAMAUN44051,
http://statistics.data.gov.uk/id/local-authority/29UP,Tonbridge & Malling Borough Council,10/27/2021,0022025896/1,22025896, 399.00,National Energy Action,01816700,,Minimum Energy Efficiency Proj,Private Sector Housing Renewal,C03BD000044032,220003146
http://statistics.data.gov.uk/id/local-authority/29UP,Tonbridge & Malling Borough Council,10/27/2021,0022025897/1,22025897, 912.00,Peabody South East LTD,01680900,,Countywide DFG Project,Private Sector Housing Renewal,C03BD000044031,
http://statistics.data.gov.uk/id/local-authority/29UP,Tonbridge & Malling Borough Council,10/27/2021,0022025898/1,22025898, 444.00,Peabody South East LTD,01680900,,Countywide DFG Project,Private Sector Housing Renewal,C03BD000044031,
http://statistics.data.gov.uk/id/local-authority/29UP,Tonbridge & Malling Borough Council,10/27/2021,0022025899/3,22025899, 1440.00,The Oyster Partnership,01196400,,Temporary Staff,Env Hlth & Hsg Sals&Overheads,D01AVDV0711300,
http://statistics.data.gov.uk/id/local-authority/29UP,Tonbridge & Malling Borough Council,10/27/2021,0022025900/1,22025900, 250.00,Landmark Information Group,00935700,,Subscriptions,Env Hlth & Hsg Sals&Overheads,D01AVDV0347002,220003161
http://statistics.data.gov.uk/id/local-authority/29UP,Tonbridge & Malling Borough Council,10/27/2021,0031018238/1,31018238, 590.00,Flowbird Smart City UK Limited,00898700,,Purchases,Parking Off-Street,E10HA000040101,310042741
http://statistics.data.gov.uk/id/local-authority/29UP,Tonbridge & Malling Borough Council,10/27/2021,0031018238/2,31018238, 25.00,Flowbird Smart City UK Limited,00898700,,Purchases,Parking Off-Street,E10HA000040101,310042741
http://statistics.data.gov.uk/id/local-authority/29UP,Tonbridge & Malling Borough Council,10/27/2021,0031018241/1,31018241, 82.45,DW Windsor,01651900,,BRREP Car Park mntce,Leis Man Poult Wood Golf Centr,M15HEP20001953,310042711
http://statistics.data.gov.uk/id/local-authority/29UP,Tonbridge & Malling Borough Council,10/27/2021,0031018241/2,31018241, 543.47,DW Windsor,01651900,,BRREP Car Park mntce,Leis Man Poult Wood Golf Centr,M15HEP20001953,310042711
http://statistics.data.gov.uk/id/local-authority/29UP,Tonbridge & Malling Borough Council,10/27/2021,0031018242/1,31018242, 64.00,Greenham Trading Ltd,00127900,745138823,Protective Clothing,Technical Sals&Overheads,D01AE000042001,310042743
http://statistics.data.gov.uk/id/local-authority/29UP,Tonbridge & Malling Borough Council,10/27/2021,0031018248/1,31018248, 5737.00,Arnold & Court Ltd,01411300,,Re-opening High Streets,Eco Dev & Reg Gen Bus Support,D52TDCV1948076,310042710
http://statistics.data.gov.uk/id/local-authority/29UP,Tonbridge & Malling Borough Council,10/27/2021,0031018249/1,31018249, 400.00,Arnold & Court Ltd,01411300,,Bridge Maintenance,Open Spaces & Amenity Areas,B22LE000020505,210056451
http://statistics.data.gov.uk/id/local-authority/29UP,Tonbridge & Malling Borough Council,10/27/2021,0031018249/2,31018249, 94.00,Arnold & Court Ltd,01411300,,Bridge Maintenance,Open Spaces & Amenity Areas,B22LE000020505,210056451
http://statistics.data.gov.uk/id/local-authority/29UP,Tonbridge & Malling Borough Council,10/27/2021,0032009281/3,32009281, 926.80,The Oyster Partnership,01196400,,Temporary Staff,Planning Sals&Overheads,D01AJDJ0111300,
http://statistics.data.gov.uk/id/local-authority/29UP,Tonbridge & Malling Borough Council,10/27/2021,0032009282/1,32009282, 29750.00,Urban Intelligence Ltd,01816600,,Local Dev Framework Expenses,Preparation of Local Dev Frame,A01AE000044023,320003340
http://statistics.data.gov.uk/id/local-authority/29UP,Tonbridge & Malling Borough Council,10/27/2021,0032009282/2,32009282, 12275.00,Urban Intelligence Ltd,01816600,,Local Dev Framework Expenses,Preparation of Local Dev Frame,A01AE000044023,320003340
http://statistics.data.gov.uk/id/local-authority/29UP,Tonbridge & Malling Borough Council,10/27/2021,0041033576/3,41033576, 255.75,KH Recruitment Ltd,01738900,,Temporary Staff,Finance Sals&Overheads,D01AFDF1111300,
http://statistics.data.gov.uk/id/local-authority/29UP,Tonbridge & Malling Borough Council,10/27/2021,0041033581/1,41033581, 104466.14,Lower Medway Internal Drainage Board,00059900,,Payments to Drainage Boards,Drainage Boards Levies,D44QT000024004,
http://statistics.data.gov.uk/id/local-authority/29UP,Tonbridge & Malling Borough Council,10/27/2021,0041033582/1,41033582, 120576.25,Upper Medway Internal Drainage Board,00109100,,Payments to Drainage Boards,Drainage Boards Levies,D44QT000024004,
http://statistics.data.gov.uk/id/local-authority/29UP,Tonbridge & Malling Borough Council,10/27/2021,0041033583/3,41033583, 4832.00,Greenhalgh Kerr,01590200,,Bailiffs Commission,Local Revenue & NNDR Collect,D41QA000044075,
http://statistics.data.gov.uk/id/local-authority/29UP,Tonbridge & Malling Borough Council,10/27/2021,0041033583/4,41033583, 2.00,Greenhalgh Kerr,01590200,,Bailiffs Commission,Local Revenue & NNDR Collect,D41QA000044075,
http://statistics.data.gov.uk/id/local-authority/29UP,Tonbridge & Malling Borough Council,10/27/2021,0041033584/3,41033584, 980.50,Morgan Hunt UK Ltd,01086900,,Temporary Staff,Finance Sals&Overheads,D01AFDF1111300,
http://statistics.data.gov.uk/id/local-authority/29UP,Tonbridge & Malling Borough Council,10/27/2021,0041033585/3,41033585, 925.00,Morgan Hunt UK Ltd,01086900,,Temporary Staff,Finance Sals&Overheads,D01AFDF1111300,
http://statistics.data.gov.uk/id/local-authority/29UP,Tonbridge & Malling Borough Council,10/27/2021,0041033589/1,41033589, 4.16,Amazon EU SARL,01738400,,Purchases,Finance Sals&Overheads,D01AFDF1140101,410032075
http://statistics.data.gov.uk/id/local-authority/29UP,Tonbridge & Malling Borough Council,10/27/2021,0041033589/2,41033589, 6.02,Amazon EU SARL,01738400,,Stationery,Finance Sals&Overheads,D01AFDF1143003,410032075
http://statistics.data.gov.uk/id/local-authority/29UP,Tonbridge & Malling Borough Council,10/27/2021,0041033591/1,41033591, 80.00,WorldPay Ltd,01402000,991280207,Credit Card Commission,Banking Arrangements,D43QK000044082,
http://statistics.data.gov.uk/id/local-authority/29UP,Tonbridge & Malling Borough Council,10/27/2021,0041033591/2,41033591, 57.28,WorldPay Ltd,01402000,991280207,Credit Card Commission,Banking Arrangements,D43QK000044082,
http://statistics.data.gov.uk/id/local-authority/29UP,Tonbridge & Malling Borough Council,10/27/2021,0041033591/3,41033591, 0.56,WorldPay Ltd,01402000,991280207,Credit Card Commission,Banking Arrangements,D43QK000044082,
http://statistics.data.gov.uk/id/local-authority/29UP,Tonbridge & Malling Borough Council,10/27/2021,0041033592/1,41033592, 80.00,WorldPay Ltd,01402000,991280207,Credit Card Commission,Banking Arrangements,D43QK000044082,
http://statistics.data.gov.uk/id/local-authority/29UP,Tonbridge & Malling Borough Council,10/27/2021,0041033592/2,41033592, 44.64,WorldPay Ltd,01402000,991280207,Credit Card Commission,Banking Arrangements,D43QK000044082,
http://statistics.data.gov.uk/id/local-authority/29UP,Tonbridge & Malling Borough Council,10/27/2021,0041033592/3,41033592, 0.48,WorldPay Ltd,01402000,991280207,Credit Card Commission,Banking Arrangements,D43QK000044082,
http://statistics.data.gov.uk/id/local-authority/29UP,Tonbridge & Malling Borough Council,10/27/2021,0041033593/1,41033593, 80.00,WorldPay Ltd,01402000,991280207,Credit Card Commission,Banking Arrangements,D43QK000044082,
http://statistics.data.gov.uk/id/local-authority/29UP,Tonbridge & Malling Borough Council,10/27/2021,0041033593/2,41033593, 149.12,WorldPay Ltd,01402000,991280207,Credit Card Commission,Banking Arrangements,D43QK000044082,
http://statistics.data.gov.uk/id/local-authority/29UP,Tonbridge & Malling Borough Council,10/27/2021,0041033593/3,41033593, 0.08,WorldPay Ltd,01402000,991280207,Credit Card Commission,Banking Arrangements,D43QK000044082,
http://statistics.data.gov.uk/id/local-authority/29UP,Tonbridge & Malling Borough Council,10/27/2021,0041033594/3,41033594, 1012.23,Maidstone Borough Council,01173700,,Bailiffs Commission,Local Revenue & NNDR Collect,D41QA000044075,
http://statistics.data.gov.uk/id/local-authority/29UP,Tonbridge & Malling Borough Council,10/27/2021,0041033595/3,41033595, 203.88,Rundle & Co Ltd,00087200,,Bailiffs Commission,Local Revenue & NNDR Collect,D41QA000044075,
http://statistics.data.gov.uk/id/local-authority/29UP,Tonbridge & Malling Borough Council,10/27/2021,0041033596/2,41033596, 357132.00,"Dep for Business, Energy & Industial Str",01793500,,Payment re Prev Yrs Cred Acc,Sundry Creditors Finance,J80TF000001101,
http://statistics.data.gov.uk/id/local-authority/29UP,Tonbridge & Malling Borough Council,10/27/2021,0041033596/3,41033596, 250132.71,"Dep for Business, Energy & Industial Str",01793500,,Payment re Prev Yrs Cred Acc,Sundry Creditors Finance,J80TF000001101,
http://statistics.data.gov.uk/id/local-authority/29UP,Tonbridge & Malling Borough Council,10/27/2021,0041033596/4,41033596, 1054000.00,"Dep for Business, Energy & Industial Str",01793500,,Payment re Prev Yrs Cred Acc,Sundry Creditors Finance,J80TF000001101,
http://statistics.data.gov.uk/id/local-authority/29UP,Tonbridge & Malling Borough Council,10/27/2021,0041033596/5,41033596, 527196.00,"Dep for Business, Energy & Industial Str",01793500,,Payment re Prev Yrs Cred Acc,Sundry Creditors Finance,J80TF000001101,
http://statistics.data.gov.uk/id/local-authority/29UP,Tonbridge & Malling Borough Council,10/27/2021,0051008609/1,51008609, 500.00,HQN Limited,00982000,,Ext Fees/Prof & Tech,Training,D10DCDV0913561,510010523
http://statistics.data.gov.uk/id/local-authority/29UP,Tonbridge & Malling Borough Council,10/27/2021,0051008610/3,51008610, 75.00,Town & Country Planning Association,01403200,,Ext Fees/Prof & Tech,Training,D10DCDJ0313561,
